Workbook

Sheet Feuil1
A1: n° article | B1: CODES | C1: DESIGNATIONS | D1: S. O | E1: P. U | F1: S. PHY | G1: AVARIES | H1: ECARTS | J1: OBSER | K1: n° article
H2: + | I2: -
A3: =IF(LEFT($C3,SEARCH(" ",$C3&" "))=LEFT($C2,SEARCH(" ",$C2&" ")),N(A2),N(A2)+1) -> 1 | B3: A488 | C3: ABATTANT WC BLANC LOURD | D3: 167 | E3: 4500 | F3: 146 | I3: 21
A4: =IF(LEFT($C4,SEARCH(" ",$C4&" "))=LEFT($C3,SEARCH(" ",$C3&" ")),N(A3),N(A3)+1) -> 1 | B4: A5 | C4: ABATTANT WC BLEU | D4: 5 | E4: 2500 | F4: 19 | G4: 7 | H4: 14 | K4: =IF(LEFT($B4,SEARCH(" ",$B4&" "))=LEFT($B2,SEARCH(" ",$B2&" ")),N(K1),N(K1)+1) -> 1
A5: 1 | B5: A462 | C5: ABATTANT WC LOURD ROSE | D5: 13 | E5: 2825 | F5: 0 | I5: 13
A6: 2 | B6: A10 | C6: ACIDE CHLORIDRIQUE 1L | D6: 6 | E6: 500 | F6: 10 | G6: 10 | H6: 4 | K6: =IF(LEFT($B6,SEARCH(" ",$B6&" "))=LEFT($B4,SEARCH(" ",$B4&" ")),N(K4),N(K4)+1) -> 2
A7: 3 | B7: A456 | C7: AGRAFE 8/4 | D7: 20 | E7: 170 | I7: 20 | J7: BPS
A8: 4 | B8: A321 | C8: AMPOULE E14 POINTU 40W EMKAY | D8: 0 | E8: 60 | F8: 101 | G8: 101 | H8: 101 | K8: =IF(LEFT($B8,SEARCH(" ",$B8&" "))=LEFT($B6,SEARCH(" ",$B6&" ")),N(K6),N(K6)+1) -> 3
A9: 4 | B9: A271 | C9: AMPOULE PHILIPS B22 60W | D9: 0 | E9: 200 | F9: 20 | G9: 14 | H9: 20
A10: 4 | B10: A51 | C10: AMPOULE B22 TESLA BLANC 40W | D10: 458 | E10: 100 | F10: 332 | G10: 132 | I10: 126 | K10: =IF(LEFT($B10,SEARCH(" ",$B10&" "))=LEFT($B8,SEARCH(" ",$B8&" ")),N(K8),N(K8)+1) -> 4
A11: 4 | B11: A546 | C11: AMPOULE ECO LED B22 REF E02B02 BLANC 7W | D11: 120 | E11: 3000 | F11: 126 | H11: 6
A12: 4 | B12: A458 | C12: AMPOULE ECO PHILIP E27 | D12: 44 | E12: 1200 | F12: 35 | G12: 11 | I12: 9 | K12: =IF(LEFT($B12,SEARCH(" ",$B12&" "))=LEFT($B10,SEARCH(" ",$B10&" ")),N(K10),N(K10)+1) -> 5
A13: 4 | B13: A543 | C13: AMPOULE ECO PHILIPS E27 11W 3U PM | D13: 1 | E13: 1500 | F13: 0 | I13: 1
A14: 4 | B14: A459 | C14: AMPOULE ECO PHILIPS E27 14W | D14: 36 | E14: 1500 | F14: 0 | I14: 36 | K14: =IF(LEFT($B14,SEARCH(" ",$B14&" "))=LEFT($B12,SEARCH(" ",$B12&" ")),N(K12),N(K12)+1) -> 6
A15: 4 | B15: A566 | C15: AMPOULE ECO VIRONY B22 ES-003 DE 105W | D15: 0 | E15: 3000 | F15: 7 | G15: 7 | H15: 7
A16: 4 | B16: A216 | C16: AMPOULE ECONOMIQUE E27 2U 18W ESL (CJB) | D16: 36 | E16: 500 | F16: 20 | G16: 8 | I16: 16 | K16: =IF(LEFT($B16,SEARCH(" ",$B16&" "))=LEFT($B14,SEARCH(" ",$B14&" ")),N(K14),N(K14)+1) -> 7
A17: 4 | B17: A453 | C17: AMPOULE MAF DIRECT 450W | D17: 8 | E17: 2070 | F17: 6 | I17: 2
A18: 4 | B18: A192 | C18: AMPOULE MAF E27 DIRECT 250W | D18: 45 | E18: 1350 | F18: 66 | G18: 56 | H18: 21 | K18: =IF(LEFT($B18,SEARCH(" ",$B18&" "))=LEFT($B16,SEARCH(" ",$B16&" ")),N(K16),N(K16)+1) -> 8
A19: 4 | B19: A309 | C19: AMPOULE MAF E40 INDIRECT 250W | D19: 1 | E19: 1220 | F19: 42 | G19: 2 | H19: 41
A20: 4 | B20: A282 | C20: AMPOULE SPOT E27 60W R80 TOUTES COULEURS | D20: 425 | E20: 400 | F20: 560 | G20: 1 | H20: 135 | K20: =IF(LEFT($B20,SEARCH(" ",$B20&" "))=LEFT($B18,SEARCH(" ",$B18&" ")),N(K18),N(K18)+1) -> 9
A21: 4 | B21: A280 | C21: AMPOULE SPOT E27 40W R80 | D21: 206 | E21: 350 | F21: 175 | G21: 1 | I21: 31
A22: 4 | B22: A91 | C22: AMPOULE SPOT E27 BLANC 75W R60 | D22: 391 | E22: 400 | F22: 300 | I22: 91 | K22: =IF(LEFT($B22,SEARCH(" ",$B22&" "))=LEFT($B20,SEARCH(" ",$B20&" ")),N(K20),N(K20)+1) -> 10
A23: 5 | B23: A415 | C23: ANTICHOC ALU DE 60 CM DROIT | D23: 92 | E23: 2200 | F23: 123 | H23: 31
A24: 6 | B24: A111 | C24: ANTI-CHOC ALU DE 60 CM | D24: 125 | E24: 2000 | F24: 104 | I24: 21 | K24: =IF(LEFT($B24,SEARCH(" ",$B24&" "))=LEFT($B22,SEARCH(" ",$B22&" ")),N(K22),N(K22)+1) -> 11
A25: 6 | B25: A585 | C25: ANTI-CHOC ALU DROIT 80CM | D25: 59 | E25: 3500 | F25: 56 | I25: 3
A26: 7 | B26: A394 | C26: ANTI-ROUILLE BR 1.2KG CAMERO PEINT | D26: 237 | E26: 1750 | F26: 238 | H26: 1 | K26: =IF(LEFT($B26,SEARCH(" ",$B26&" "))=LEFT($B24,SEARCH(" ",$B24&" ")),N(K24),N(K24)+1) -> 12
A27: 7 | B27: A259 | C27: ANTI-ROUILLE BRUN 1KG MPCC | D27: 110 | E27: 1950 | F27: 111 | G27: 1 | H27: 1
A28: 7 | B28: A286 | C28: ANTI-ROUILLE BRUN EN 5KG MPCC | D28: 16 | E28: 9900 | F28: 25 | H28: 9 | K28: =IF(LEFT($B28,SEARCH(" ",$B28&" "))=LEFT($B26,SEARCH(" ",$B26&" ")),N(K26),N(K26)+1) -> 13
A29: 7 | B29: A204 | C29: ANTI-ROUILLE ORANGE 2KG MPCC | D29: 1 | E29: 4300 | F29: 0 | I29: 1
A30: 7 | B30: A275 | C30: ANTI-ROUILLE ORANGE DE 5 KG MPCC | D30: 9 | E30: 10800 | F30: 0 | I30: 9 | K30: =IF(LEFT($B30,SEARCH(" ",$B30&" "))=LEFT($B28,SEARCH(" ",$B28&" ")),N(K28),N(K28)+1) -> 14
A31: 8 | B31: A370 | C31: ARRACHE CLOU DE 40 | D31: 37 | E31: 900 | F31: 32 | I31: 5
A32: 8 | B32: A125 | C32: ARRACHE CLOU DE 50 | D32: 6 | E32: 1500 | F32: 9 | H32: 3 | K32: =IF(LEFT($B32,SEARCH(" ",$B32&" "))=LEFT($B30,SEARCH(" ",$B30&" ")),N(K30),N(K30)+1) -> 15
A33: 8 | B33: A126 | C33: ARRACHE CLOU DE 60 | D33: 34 | E33: 1300 | F33: 36 | H33: 2
A34: 8 | B34: A127 | C34: ARRACHE CLOU DE 70 | D34: 74 | E34: 2200 | F34: 6 | I34: 68 | K34: =IF(LEFT($B34,SEARCH(" ",$B34&" "))=LEFT($B32,SEARCH(" ",$B32&" ")),N(K32),N(K32)+1) -> 16
A35: 8 | B35: A128 | C35: ARRACHE CLOU DE 80 | D35: 36 | E35: 2000 | F35: 60 | H35: 24
A36: 9 | B36: A177 | C36: ATTACHE ELECT DE 14/100P | D36: 68 | E36: 500 | F36: 49 | I36: 19 | K36: =IF(LEFT($B36,SEARCH(" ",$B36&" "))=LEFT($B34,SEARCH(" ",$B34&" ")),N(K34),N(K34)+1) -> 17
A37: 9 | B37: A170 | C37: ATTACHE ELECT DE 5/100P | D37: 4 | E37: 700 | F37: 0 | I37: 4
A38: 9 | B38: A172 | C38: ATTACHE ELECT DE 7/100PCES | D38: 82 | E38: 125 | F38: 70 | I38: 12 | K38: =IF(LEFT($B38,SEARCH(" ",$B38&" "))=LEFT($B36,SEARCH(" ",$B36&" ")),N(K36),N(K36)+1) -> 18
A39: 9 | B39: A174 | C39: ATTACHE ELECT DE 9/100PCES | D39: 0 | E39: 150 | F39: 3 | H39: 3
A40: 10 | B40: A301 | C40: AUGE MACON PROGON DE 35 L REF 7735 | D40: 1 | E40: 6000 | F40: 0 | I40: 1 | K40: =IF(LEFT($B40,SEARCH(" ",$B40&" "))=LEFT($B38,SEARCH(" ",$B38&" ")),N(K38),N(K38)+1) -> 19
A41: 11 | B41: B33 | C41: BALAI CANTONNIER NYLON ROUGE | D41: 243 | E41: 2500 | F41: 99 | I41: 144
A42: 12 | B42: B61 | C42: BANDE ADHESIVE DE 25 CM | D42: 307 | E42: 200 | F42: 7 | I42: 300 | K42: =IF(LEFT($B42,SEARCH(" ",$B42&" "))=LEFT($B40,SEARCH(" ",$B40&" ")),N(K40),N(K40)+1) -> 20
A43: 12 | B43: B646 | C43: BANDE THERMIQUE 57X40 | D43: 79 | E43: 300 | I43: 79 | J43: BPS
A44: 12 | B44: B670 | C44: BANDE THERMIQUE 57X56 | D44: 13 | E44: 1500 | I44: 13 | J44: BPS | K44: =IF(LEFT($B44,SEARCH(" ",$B44&" "))=LEFT($B42,SEARCH(" ",$B42&" ")),N(K42),N(K42)+1) -> 21
A45: 13 | B45: B1092 | C45: BARRE A MINE DE 1.750M FRANCAIS | D45: 5 | E45: 22100 | F45: 4 | I45: 1
A46: 13 | B46: B75 | C46: BARRE A MINE DE 1.80 M | D46: 20 | E46: 10300 | F46: 3 | I46: 17 | K46: =IF(LEFT($B46,SEARCH(" ",$B46&" "))=LEFT($B44,SEARCH(" ",$B44&" ")),N(K44),N(K44)+1) -> 22
A47: 13 | B47: B76 | C47: BARRE A MINE DE 2M | D47: 19 | E47: 11000 | F47: 38 | H47: 19
A48: 13 | B48: B1093 | C48: BARRE AMINE DE 2M FRANCAIS | D48: 5 | E48: 28250 | F48: 4 | I48: 1 | K48: =IF(LEFT($B48,SEARCH(" ",$B48&" "))=LEFT($B46,SEARCH(" ",$B46&" ")),N(K46),N(K46)+1) -> 23
A49: 14 | B49: B611 | C49: BATICIT A EAU BLANC DE 25 KG IMP. | D49: 1 | E49: 10500 | F49: 0 | I49: 1
A50: 15 | B50: B192 | C50: BATILAC A HUILE GRIS FONCE DE 2,5 KG | D50: 0 | E50: 3000 | F50: 2 | H50: 2 | K50: =IF(LEFT($B50,SEARCH(" ",$B50&" "))=LEFT($B48,SEARCH(" ",$B48&" ")),N(K48),N(K48)+1) -> 24
A51: 15 | B51: B43 | C51: BATILAC A HUILE MARRON CLAIRE EN 2.5KG | D51: 5 | E51: 3500 | F51: 0 | I51: 5
A52: 15 | B52: B56 | C52: BATILAC A HUILE NOIR EN 2.5KG | D52: 1 | E52: 3500 | F52: 0 | I52: 1 | K52: =IF(LEFT($B52,SEARCH(" ",$B52&" "))=LEFT($B50,SEARCH(" ",$B50&" ")),N(K50),N(K50)+1) -> 25
A53: 15 | B53: B608 | C53: BATILAC A HUILE JAUNE CUBA EN 2.5KG | D53: 8 | E53: 3000 | F53: 16 | H53: 8
A54: 15 | B54: B620 | C54: BATILAC A HUILE ROUGE DE 2,5 KG | D54: 0 | E54: 3000 | F54: 2 | H54: 2 | K54: =IF(LEFT($B54,SEARCH(" ",$B54&" "))=LEFT($B52,SEARCH(" ",$B52&" ")),N(K52),N(K52)+1) -> 26
A55: 15 | B55: B649 | C55: BATILAC A HUILE VERT JARDIN EN 2.5KG | D55: 1 | E55: 3500 | F55: 5 | G55: 1 | H55: 4
A56: 15 | B56: B662 | C56: BATILAC A HUILE BLANC DE 2,5 KG | D56: 0 | E56: 3500 | F56: 1 | H56: 1 | K56: =IF(LEFT($B56,SEARCH(" ",$B56&" "))=LEFT($B54,SEARCH(" ",$B54&" ")),N(K54),N(K54)+1) -> 27
A57: 15 | B57: B944 | C57: BATILAC A HUILE GRIS FONCE DE 1KG | D57: 1 | E57: 1000 | F57: 0 | I57: 1
A58: 15 | B58: B947 | C58: BATILAC A HUILE VERT FONCE DE 1KG | D58: 2 | E58: 1000 | F58: 0 | I58: 2 | K58: =IF(LEFT($B58,SEARCH(" ",$B58&" "))=LEFT($B56,SEARCH(" ",$B56&" ")),N(K56),N(K56)+1) -> 28
A59: 15 | B59: B952 | C59: BATILAC A HUILE JAUNE OXYDE DE 1KG | D59: 0 | E59: 1000 | F59: 1 | H59: 1
A60: 15 | B60: B954 | C60: BATILAC A HUILE VERT POIVRON DE 2,5KG | D60: 3 | E60: 3000 | F60: 0 | I60: 3 | K60: =IF(LEFT($B60,SEARCH(" ",$B60&" "))=LEFT($B58,SEARCH(" ",$B58&" ")),N(K58),N(K58)+1) -> 29
A61: 15 | B61: B957 | C61: BATILAC HUILE MARRON FONCE EN 2.5KGS | D61: 58 | E61: 3000 | F61: 0 | I61: 58
A62: 16 | B62: B585 | C62: BATITEINTE BLEU IMP EN 180 G | D62: 14 | E62: 800 | F62: 13 | I62: 1 | K62: =IF(LEFT($B62,SEARCH(" ",$B62&" "))=LEFT($B60,SEARCH(" ",$B60&" ")),N(K60),N(K60)+1) -> 30
A63: 16 | B63: B96 | C63: BATITEINTE MARRON IMP. 180G | D63: 361 | E63: 800 | F63: 426 | H63: 65
A64: 16 | B64: B633 | C64: BATITEINTE NOIR IMP EN 180 G | D64: 71 | E64: 800 | F64: 69 | I64: 2 | K64: =IF(LEFT($B64,SEARCH(" ",$B64&" "))=LEFT($B62,SEARCH(" ",$B62&" ")),N(K62),N(K62)+1) -> 31
A65: 16 | B65: B631 | C65: BATITEINTE ROUGE IMP EN 180 G | D65: 53 | E65: 800 | F65: 47 | I65: 6
A66: 17 | B66: B645 | C66: BATTERIE ONDULEUR 12V/12AP | D66: 2 | E66: 15350 | G66: 2 | I66: 2 | J66: BPS | K66: =IF(LEFT($B66,SEARCH(" ",$B66&" "))=LEFT($B64,SEARCH(" ",$B64&" ")),N(K64),N(K64)+1) -> 32
A67: 17 | B67: B659 | C67: BATTERIE ONDULEUR 7H 12 AP | D67: 3 | E67: 12000 | G67: 3 | I67: 3 | J67: BPS
A68: =IF(LEFT($C68,SEARCH(" ",$C68&" "))=LEFT($C67,SEARCH(" ",$C67&" ")),N(A67),N(A67)+1) -> 18 | B68: B1078 | C68: BIC BLEU BEIFA EN PQT DE 50 PIECES | D68: 1 | E68: 2200 | G68: 1 | I68: 1 | J68: BPS | K68: =IF(LEFT($B68,SEARCH(" ",$B68&" "))=LEFT($B66,SEARCH(" ",$B66&" ")),N(K66),N(K66)+1) -> 33
A69: 18 | B69: B732 | C69: BIC BLEU CH | D69: 144 | E69: 75 | G69: 144 | I69: 144 | J69: BPS
A70: 18 | B70: B877 | C70: BIC BLEU EN PAQUET DE 50 | D70: 200 | E70: 1000 | G70: 200 | I70: 200 | J70: BPS | K70: =IF(LEFT($B70,SEARCH(" ",$B70&" "))=LEFT($B68,SEARCH(" ",$B68&" ")),N(K68),N(K68)+1) -> 34
A71: 18 | B71: B879 | C71: BIC NOIR EN PAQUET DE 50 | D71: 198 | E71: 1000 | G71: 198 | I71: 198 | J71: BPS
A72: 18 | B72: B734 | C72: BIC ROUGE CH | D72: 100 | E72: 75 | G72: 100 | I72: 100 | J72: BPS | K72: =IF(LEFT($B72,SEARCH(" ",$B72&" "))=LEFT($B70,SEARCH(" ",$B70&" ")),N(K70),N(K70)+1) -> 35
A73: 18 | B73: B878 | C73: BIC ROUGE EN PIECES | D73: 6350 | E73: 100 | G73: 6350 | I73: 6350 | J73: BPS
A74: 19 | B74: B6111 | C74: BLOC CUBIQUE | D74: 10 | E74: 500 | I74: 10 | J74: BPS | K74: =IF(LEFT($B74,SEARCH(" ",$B74&" "))=LEFT($B72,SEARCH(" ",$B72&" ")),N(K72),N(K72)+1) -> 36
A75: 19 | B75: B5766 | C75: BLOC NOTE GM | D75: 5 | E75: 620 | I75: 5 | J75: BPS
A76: 19 | B76: B573 | C76: BLOC NOTE PM | D76: 10 | E76: 325 | I76: 10 | J76: BPS | K76: =IF(LEFT($B76,SEARCH(" ",$B76&" "))=LEFT($B74,SEARCH(" ",$B74&" ")),N(K74),N(K74)+1) -> 37
A77: 20 | B77: B132 | C77: BOITE DE DERIVATION 150 X 150 | D77: 70 | E77: 1900 | F77: 67 | I77: 3
A78: 20 | B78: B140 | C78: BOITE DE DERIVATION ENC 2316 | D78: 52 | E78: 1100 | F78: 1 | I78: 51 | K78: =IF(LEFT($B78,SEARCH(" ",$B78&" "))=LEFT($B76,SEARCH(" ",$B76&" ")),N(K76),N(K76)+1) -> 38
A79: 20 | B79: B1004 | C79: BOITE DE DERIVATION ETANCHE IP44 80X80X40 | D79: 49 | E79: 400 | F79: 50 | H79: 1
A80: 20 | B80: B138 | C80: BOITE DE DERIVATION REF 2310 | D80: 359 | E80: 450 | F80: 370 | G80: 1 | H80: 11 | K80: =IF(LEFT($B80,SEARCH(" ",$B80&" "))=LEFT($B78,SEARCH(" ",$B78&" ")),N(K78),N(K78)+1) -> 39
A81: 20 | B81: B139 | C81: BOITE DE DERIVATION REF 2313 | D81: 0 | E81: 725 | F81: 45 | H81: 45
A82: 20 | B82: B545 | C82: BOITE ETANCHE RONDE 80X50 | D82: 59 | E82: 575 | F82: 63 | H82: 4 | K82: =IF(LEFT($B82,SEARCH(" ",$B82&" "))=LEFT($B80,SEARCH(" ",$B80&" ")),N(K80),N(K80)+1) -> 40
A83: 21 | B83: B1048 | C83: BOITIER KRISBOW REF E08SE8011C | D83: 14 | E83: 250 | F83: 0 | I83: 14
A84: 21 | B84: B612 | C84: BOITIER VENTOUSE LOURD | D84: 3417 | E84: 60 | F84: 3390 | G84: 2 | I84: 27 | K84: =IF(LEFT($B84,SEARCH(" ",$B84&" "))=LEFT($B82,SEARCH(" ",$B82&" ")),N(K82),N(K82)+1) -> 41
A85: 22 | B85: B6155 | C85: BON DE COMMANDE SQC 99501- 100500 | D85: 7 | E85: 1100 | I85: 7 | J85: BPS
A86: 22 | B86: B1046 | C86: BON DE MANUTENTION CAISSE DEPENSE | D86: 10 | E86: 240 | I86: 10 | J86: BPS | K86: =IF(LEFT($B86,SEARCH(" ",$B86&" "))=LEFT($B84,SEARCH(" ",$B84&" ")),N(K84),N(K84)+1) -> 42
A87: 22 | B87: B5477 | C87: BON DE RECEPTION COMMANDE CLIENT | D87: 1 | E87: 550 | I87: 1 | J87: BPS
A88: 22 | B88: B29 | C88: BON D'ENTREE SQC | D88: 25 | E88: 550 | I88: 25 | J88: BPS | K88: =IF(LEFT($B88,SEARCH(" ",$B88&" "))=LEFT($B86,SEARCH(" ",$B86&" ")),N(K86),N(K86)+1) -> 43
A89: 23 | B89: B628 | C89: BONDE EVIER SIMPLE 2BACS | D89: 30 | E89: 2150 | F89: 0 | I89: 30
A90: 23 | B90: B152 | C90: BONDE LAVABO + CHAINE INOX LY468 | D90: 52 | E90: 1700 | F90: 37 | G90: 21 | I90: 15 | K90: =IF(LEFT($B90,SEARCH(" ",$B90&" "))=LEFT($B88,SEARCH(" ",$B88&" ")),N(K88),N(K88)+1) -> 44
A91: 23 | B91: B154 | C91: BONDE POUR RECEVEUR DE DOUCHE | D91: 12 | E91: 2020 | F91: 0 | I91: 12
A92: 24 | B92: B806 | C92: BOTTE DE SECU EN PVC P41 | D92: 10 | E92: 10350 | F92: 2 | I92: 8 | K92: =IF(LEFT($B92,SEARCH(" ",$B92&" "))=LEFT($B90,SEARCH(" ",$B90&" ")),N(K90),N(K90)+1) -> 45
A93: 24 | B93: B807 | C93: BOTTE DE SECU EN PVC P42 | D93: 1 | E93: 10350 | F93: 0 | I93: 1
A94: 24 | B94: B808 | C94: BOTTE DE SECU EN PVC P43 | D94: 2 | E94: 10350 | F94: 0 | I94: 2 | K94: =IF(LEFT($B94,SEARCH(" ",$B94&" "))=LEFT($B92,SEARCH(" ",$B92&" ")),N(K92),N(K92)+1) -> 46
A95: 24 | B95: B809 | C95: BOTTE DE SECU EN PVC P44 | D95: 1 | E95: 10350 | F95: 0 | I95: 1
A96: 24 | B96: B818 | C96: BOTTE DE SECU EN PVC P46 | D96: 1 | E96: 10350 | F96: 0 | I96: 1 | K96: =IF(LEFT($B96,SEARCH(" ",$B96&" "))=LEFT($B94,SEARCH(" ",$B94&" ")),N(K94),N(K94)+1) -> 47
A97: 24 | B97: B574 | C97: BOTTE DE SECURITE BELLOTA DE 40 | D97: 19 | E97: 9000 | F97: 18 | G97: 1 | I97: 1
A98: 24 | B98: B577 | C98: BOTTE DE SECURITE BELLOTA DE 41 | D98: 25 | E98: 9000 | F98: 36 | G98: 3 | H98: 11 | K98: =IF(LEFT($B98,SEARCH(" ",$B98&" "))=LEFT($B96,SEARCH(" ",$B96&" ")),N(K96),N(K96)+1) -> 48
A99: 24 | B99: B120 | C99: BOTTE DE SECURITE BELLOTA DE 43 | D99: 4 | E99: 9000 | F99: 5 | G99: 1 | H99: 1
A100: 24 | B100: B737 | C100: BOTTE DE SECURITE ITALY S5 DE 41 | D100: 24 | E100: 11500 | F100: 12 | I100: 12 | K100: =IF(LEFT($B100,SEARCH(" ",$B100&" "))=LEFT($B98,SEARCH(" ",$B98&" ")),N(K98),N(K98)+1) -> 49
A101: 24 | B101: B738 | C101: BOTTE DE SECURITE ITALY S5 DE 43 | D101: 24 | E101: 11500 | F101: 25 | H101: 1
A102: 24 | B102: B739 | C102: BOTTE DE SECURITE ITALY S5 DE 44 | D102: 35 | E102: 11500 | F102: 23 | I102: 12 | K102: =IF(LEFT($B102,SEARCH(" ",$B102&" "))=LEFT($B100,SEARCH(" ",$B100&" ")),N(K100),N(K100)+1) -> 50
A103: 24 | B103: B160 | C103: BOTTE DE SECURITE ITALY S5 DE 45 | D103: 33 | E103: 11500 | F103: 30 | I103: 3
A104: 24 | B104: B638 | C104: BOTTE PVC ITALY 41 | D104: 78 | E104: 4500 | F104: 15 | I104: 63 | K104: =IF(LEFT($B104,SEARCH(" ",$B104&" "))=LEFT($B102,SEARCH(" ",$B102&" ")),N(K102),N(K102)+1) -> 51
A105: 24 | B105: B824 | C105: BOTTE PVC ITALY 44 | D105: 277 | E105: 4500 | F105: 347 | H105: 70
A106: 24 | B106: B823 | C106: BOTTE PVC ITALY 43 | D106: 244 | E106: 4500 | F106: 228 | I106: 16 | K106: =IF(LEFT($B106,SEARCH(" ",$B106&" "))=LEFT($B104,SEARCH(" ",$B104&" ")),N(K104),N(K104)+1) -> 52
A107: 24 | B107: B729 | C107: BOTTE PVC ITALY 45 | D107: 125 | E107: 4500 | F107: 136 | H107: 11
A108: 24 | B108: B811 | C108: BOTTE PVC ITALY 40 | D108: 3 | E108: 4500 | F108: 5 | H108: 2 | K108: =IF(LEFT($B108,SEARCH(" ",$B108&" "))=LEFT($B106,SEARCH(" ",$B106&" ")),N(K106),N(K106)+1) -> 53
A109: 24 | B109: B822 | C109: BOTTE PVC ITALY 42 | D109: 267 | E109: 4500 | F109: 283 | H109: 16
A110: 25 | B110: B169 | C110: BOUCHON GALVA FEMELLE 20/27 | D110: 242 | E110: 65 | F110: 154 | I110: 88 | K110: =IF(LEFT($B110,SEARCH(" ",$B110&" "))=LEFT($B108,SEARCH(" ",$B108&" ")),N(K108),N(K108)+1) -> 54
A111: 25 | B111: B170 | C111: BOUCHON GALVA FEMELLE 26/34 | D111: 1 | E111: 120 | F111: 5 | H111: 4
A112: 25 | B112: B579 | C112: BOUCHON GALVA FEMELLE 40/49 | D112: 13 | E112: 185 | F112: 14 | H112: 1 | K112: =IF(LEFT($B112,SEARCH(" ",$B112&" "))=LEFT($B110,SEARCH(" ",$B110&" ")),N(K110),N(K110)+1) -> 55
A113: 25 | B113: B171 | C113: BOUCHON GALVA MALE 15/21 | D113: 6 | E113: 45 | F113: 0 | I113: 6
A114: 25 | B114: B172 | C114: BOUCHON GALVA MALE 20/27 | D114: 399 | E114: 50 | F114: 441 | H114: 42 | K114: =IF(LEFT($B114,SEARCH(" ",$B114&" "))=LEFT($B112,SEARCH(" ",$B112&" ")),N(K112),N(K112)+1) -> 56
A115: 25 | B115: B173 | C115: BOUCHON GALVA MALE 26/34 | D115: 67 | E115: 80 | F115: 69 | H115: 2
A116: 25 | B116: B520 | C116: BOUCHON GALVA MALE 33/42 | D116: 17 | E116: 150 | F116: 18 | H116: 1 | K116: =IF(LEFT($B116,SEARCH(" ",$B116&" "))=LEFT($B114,SEARCH(" ",$B114&" ")),N(K114),N(K114)+1) -> 57
A117: 25 | B117: B1040 | C117: BOUCHON OREILLE VENITEX REF CONICAP 01 | D117: 161 | E117: 500 | F117: 174 | H117: 13
A118: 25 | B118: B174 | C118: BOUCHON PVC DE 32 | D118: 6 | E118: 200 | F118: 5 | I118: 1 | K118: =IF(LEFT($B118,SEARCH(" ",$B118&" "))=LEFT($B116,SEARCH(" ",$B116&" ")),N(K116),N(K116)+1) -> 58
A119: 25 | B119: B176 | C119: BOUCHON PVC DE 50 | D119: 179 | E119: 300 | F119: 178 | I119: 1
A120: 25 | B120: B177 | C120: BOUCHON PVC DE 63 | D120: 196 | E120: 500 | F120: 193 | I120: 3 | K120: =IF(LEFT($B120,SEARCH(" ",$B120&" "))=LEFT($B118,SEARCH(" ",$B118&" ")),N(K118),N(K118)+1) -> 59
A121: 25 | B121: B178 | C121: BOUCHON PVC DE 100 | D121: 453 | E121: 1100 | F121: 462 | H121: 9
A122: 26 | B122: B677 | C122: BOUGIE EN PQUET DE 6PCES REF 075-45 CM | D122: 6 | E122: 650 | F122: 2 | I122: 4 | K122: =IF(LEFT($B122,SEARCH(" ",$B122&" "))=LEFT($B120,SEARCH(" ",$B120&" ")),N(K120),N(K120)+1) -> 60
A123: 27 | B123: B582 | C123: BROSSE A CHAUX | D123: 272 | E123: 400 | F123: 256 | I123: 16
A124: 27 | B124: B413 | C124: BROSSE A CHAUX 3X12 M/PLASTIQUE | D124: 1 | E124: 350 | F124: 0 | I124: 1 | K124: =IF(LEFT($B124,SEARCH(" ",$B124&" "))=LEFT($B122,SEARCH(" ",$B122&" ")),N(K122),N(K122)+1) -> 61
A125: 27 | B125: B1057 | C125: BROSSE A CHAUX M/P 3X10 REF 6028C | D125: 487 | E125: 550 | F125: 490 | H125: 3
A126: 27 | B126: B1073 | C126: BROSSE A LINGE VIOLON CHIENENT M/B REF 722300 | D126: 196 | E126: 1700 | F126: 197 | H126: 1 | K126: =IF(LEFT($B126,SEARCH(" ",$B126&" "))=LEFT($B124,SEARCH(" ",$B124&" ")),N(K124),N(K124)+1) -> 62
A127: 27 | B127: B1072 | C127: BROSSE A LINGE VIOLON JAUNE M/P REF 722959 | D127: 331 | E127: 750 | F127: 330 | I127: 1
A128: 27 | B128: B654 | C128: BROSSE METALIQUE 3RANGEES | D128: 0 | E128: 250 | F128: 1 | G128: 1 | H128: 1 | K128: =IF(LEFT($B128,SEARCH(" ",$B128&" "))=LEFT($B126,SEARCH(" ",$B126&" ")),N(K126),N(K126)+1) -> 63
A129: 27 | B129: B548 | C129: BROSSE METALIQUE 4RANGEES | D129: 1415 | E129: 200 | F129: 1060 | I129: 355
A130: 27 | B130: B613 | C130: BROSSE METALIQUE 5RANGEES | D130: 1903 | E130: 295 | F130: 2641 | H130: 738 | K130: =IF(LEFT($B130,SEARCH(" ",$B130&" "))=LEFT($B128,SEARCH(" ",$B128&" ")),N(K128),N(K128)+1) -> 64
A131: 27 | B131: B417 | C131: BROSSE METALIQUE EN JEU DE 3 PIECES | D131: 113 | E131: 650 | F131: 8 | I131: 105
A132: =IF(LEFT($C132,SEARCH(" ",$C132&" "))=LEFT($C131,SEARCH(" ",$C131&" ")),N(A131),N(A131)+1) -> 27 | B132: B630 | C132: BROSSE METALIQUE JEUX 3 PIECES | D132: 237 | E132: 1000 | F132: 481 | H132: 244 | K132: =IF(LEFT($B132,SEARCH(" ",$B132&" "))=LEFT($B130,SEARCH(" ",$B130&" ")),N(K130),N(K130)+1) -> 65
A133: 27 | B133: B379 | C133: BROSSE METALIQUE RONDEDE 65MM | D133: 43 | E133: 450 | F133: 46 | H133: 3
A134: 27 | B134: B623 | C134: BROSSE METALLIQUE 6 RANGEES | D134: 484 | E134: 300 | F134: 112 | G134: 1 | I134: 372 | K134: =IF(LEFT($B134,SEARCH(" ",$B134&" "))=LEFT($B132,SEARCH(" ",$B132&" ")),N(K132),N(K132)+1) -> 66
A135: 27 | B135: B1052 | C135: BROSSE METALLIQUE JEUX 3PIECES REF 11118 | D135: 171 | E135: 900 | F135: 57 | I135: 114
A136: 27 | B136: B635 | C136: BROSSE METALLIQUE M/PLAST 4RANGEES | D136: 406 | E136: 450 | F136: 388 | I136: 18 | K136: =IF(LEFT($B136,SEARCH(" ",$B136&" "))=LEFT($B134,SEARCH(" ",$B134&" ")),N(K134),N(K134)+1) -> 67
A137: 28 | B137: B433 | C137: BURIN PLAT PROTEGE DE 200 | D137: 171 | E137: 900 | F137: 335 | H137: 164
A138: 28 | B138: B434 | C138: BURIN PLAT PROTEGE DE 250 | D138: 110 | E138: 1050 | F138: 112 | H138: 2 | K138: =IF(LEFT($B138,SEARCH(" ",$B138&" "))=LEFT($B136,SEARCH(" ",$B136&" ")),N(K136),N(K136)+1) -> 68
A139: 28 | B139: B603 | C139: BURIN PLAT PROTEGE DE 350 | D139: 66 | E139: 900 | F139: 136 | H139: 70
A140: 28 | B140: B616 | C140: BURIN PLAT PROTEGE DE 400 | D140: 48 | E140: 1400 | F140: 49 | H140: 1 | K140: =IF(LEFT($B140,SEARCH(" ",$B140&" "))=LEFT($B138,SEARCH(" ",$B138&" ")),N(K138),N(K138)+1) -> 69
A141: 28 | B141: B443 | C141: BURIN POINTU PROTEGE DE 200 | D141: 175 | E141: 500 | F141: 49 | I141: 126
A142: 28 | B142: B444 | C142: BURIN POINTU PROTEGE DE 250G | D142: 192 | E142: 850 | F142: 67 | I142: 125 | K142: =IF(LEFT($B142,SEARCH(" ",$B142&" "))=LEFT($B140,SEARCH(" ",$B140&" ")),N(K140),N(K140)+1) -> 70
A143: 28 | B143: B446 | C143: BURIN POINTU PROTEGE DE 350 | D143: 109 | E143: 1100 | F143: 68 | I143: 41
A144: 28 | B144: B447 | C144: BURIN POINTU PROTEGE DE 400 | D144: 128 | E144: 1250 | F144: 179 | H144: 51 | K144: =IF(LEFT($B144,SEARCH(" ",$B144&" "))=LEFT($B142,SEARCH(" ",$B142&" ")),N(K142),N(K142)+1) -> 71
A145: 29 | B145: C2514 | C145: CAHIER 17 X 22 200 PGES REF CS5 | D145: 24 | E145: 290 | F145: 0 | I145: 24
A146: 29 | B146: C2513 | C146: CAHIER 17 X 22 288 PGES CS6 | D146: 98 | E146: 500 | F146: 51 | I146: 47 | K146: =IF(LEFT($B146,SEARCH(" ",$B146&" "))=LEFT($B144,SEARCH(" ",$B144&" ")),N(K144),N(K144)+1) -> 72
A147: 29 | B147: C2672 | C147: CAHIER 17 X 22 32 PAGES REF CS1 | D147: 455 | E147: 80 | F147: 86 | I147: 369
A148: 29 | B148: C2674 | C148: CAHIER 17 X 22 384 PGES REF CS7 | D148: 907 | E148: 600 | F148: 862 | I148: 45 | K148: =IF(LEFT($B148,SEARCH(" ",$B148&" "))=LEFT($B146,SEARCH(" ",$B146&" ")),N(K146),N(K146)+1) -> 73
A149: 29 | B149: C2515 | C149: CAHIER 17 X 22 50 PGES REF CS2 | D149: 5265 | E149: 75 | F149: 5229 | I149: 36
A150: 29 | B150: C2685 | C150: CAHIER 17 X 22 EN 100 PAGES CS3 | D150: 57 | E150: 145 | F150: 53 | I150: 4 | K150: =IF(LEFT($B150,SEARCH(" ",$B150&" "))=LEFT($B148,SEARCH(" ",$B148&" ")),N(K148),N(K148)+1) -> 74
A151: 29 | B151: C2673 | C151: CAHIER 17X22 144PGES CS2 | D151: 0 | E151: 225 | F151: 10 | H151: 10
A152: 29 | B152: C4108 | C152: CAHIER 17X22 120PGES CS3 | D152: 4961 | E152: 200 | F152: 4705 | I152: 256 | K152: =IF(LEFT($B152,SEARCH(" ",$B152&" "))=LEFT($B150,SEARCH(" ",$B150&" ")),N(K150),N(K150)+1) -> 75
A153: 29 | B153: C4100 | C153: CAHIER 17X22 EN 300PGES SC6 | D153: 2567 | E153: 500 | F153: 3110 | H153: 543
A154: 29 | B154: C2517 | C154: CAHIER 210X297 100 PAGES | D154: 180 | E154: 400 | F154: 252 | H154: 72 | K154: =IF(LEFT($B154,SEARCH(" ",$B154&" "))=LEFT($B152,SEARCH(" ",$B152&" ")),N(K152),N(K152)+1) -> 76
A155: 29 | B155: C2676 | C155: CAHIER GF GQ 21 X 29.7 200 PGES REF GFG2 | D155: 1279 | E155: 600 | F155: 1487 | H155: 208
A156: 29 | B156: C4095 | C156: CAHIER GF GQ 21X29.7 EN 300 PAGES TP | D156: 4172 | E156: 1050 | F156: 4167 | I156: 5 | K156: =IF(LEFT($B156,SEARCH(" ",$B156&" "))=LEFT($B154,SEARCH(" ",$B154&" ")),N(K154),N(K154)+1) -> 77
A157: 29 | B157: C2680 | C157: CAHIER SIMPLE ANGLO 17 X 22 20 LEAVES | D157: 1370 | E157: 70 | F157: 569 | I157: 801
A158: 29 | B158: C2681 | C158: CAHIER SIMPLE ANGLO 17 X 22 40 LEAVES | D158: 0 | E158: 135 | F158: 46 | H158: 46 | K158: =IF(LEFT($B158,SEARCH(" ",$B158&" "))=LEFT($B156,SEARCH(" ",$B156&" ")),N(K156),N(K156)+1) -> 78
A159: 29 | B159: C2683 | C159: CAHIER SIMPLE ANGLO 17 X 22 80 LEAVES | D159: 105 | E159: 200 | F159: 2 | I159: 103
A160: 29 | B160: C4102 | C160: CAHIER SIMPLE ANGLO (PLANE LINE) 17X22 20 LEAVES | D160: 360 | E160: 70 | F160: 344 | I160: 16 | K160: =IF(LEFT($B160,SEARCH(" ",$B160&" "))=LEFT($B158,SEARCH(" ",$B158&" ")),N(K158),N(K158)+1) -> 79
A161: 29 | B161: C4103 | C161: CAHIER SIMPLE ANGLO (PLANE LINE) 17X22 40 LEAVES | D161: 0 | E161: 135 | F161: 348 | H161: 348
A162: 29 | B162: C4104 | C162: CAHIER SIMPLE ANGLO (PLANE LINE) 17X22 60 LEAVES | D162: 0 | E162: 275 | F162: 2 | H162: 2 | K162: =IF(LEFT($B162,SEARCH(" ",$B162&" "))=LEFT($B160,SEARCH(" ",$B160&" ")),N(K160),N(K160)+1) -> 80
A163: 29 | B163: C4105 | C163: CAHIER SIMPLE ANGLO (HARD COVER) 21X29.7 200 LEAVES | D163: 2008 | E163: 1000 | F163: 1787 | I163: 221
A164: 29 | B164: C4106 | C164: CAHIER SIMPLE ANGLO (HARD COVER) 17X29.7 300LEAVES | D164: 705 | E164: 1600 | F164: 712 | H164: 7 | K164: =IF(LEFT($B164,SEARCH(" ",$B164&" "))=LEFT($B162,SEARCH(" ",$B162&" ")),N(K162),N(K162)+1) -> 81
A165: 29 | B165: C4107 | C165: CAHIER SIMPLE ANGLO (HARD COVER) 17X29.7 400LEAVES | D165: 0 | E165: 1900 | F165: 5 | H165: 5
A166: 29 | B166: C2518 | C166: CAHIER TP 21 X 29.7 144 PGES REF TP1 | D166: 710 | E166: 500 | F166: 702 | I166: 8 | K166: =IF(LEFT($B166,SEARCH(" ",$B166&" "))=LEFT($B164,SEARCH(" ",$B164&" ")),N(K164),N(K164)+1) -> 82
A167: 29 | B167: C2675 | C167: CAHIER TP 21 X 29.7 200 PGES REF TP2 | D167: 220 | E167: 615 | F167: 234 | H167: 14
A168: 30 | B168: C2532 | C168: CALOT REGLABLE PAPIER 53 BLC (bte 100PCES) REF 45660 | D168: 99 | E168: 5100 | F168: 0 | I168: 99 | K168: =IF(LEFT($B168,SEARCH(" ",$B168&" "))=LEFT($B166,SEARCH(" ",$B166&" ")),N(K166),N(K166)+1) -> 83
A169: 31 | B169: C138 | C169: CAPTEUR REF 5273 | D169: 6 | E169: 7875 | F169: 1 | I169: 5
A170: 32 | B170: C1020/2 | C170: CAREEAU 10X20 RUSTIQUE REF AH2018 1C=0.6M² | D170: 0 | E170: 4000 | F170: 10.2 | H170: 10.2 | K170: =IF(LEFT($B170,SEARCH(" ",$B170&" "))=LEFT($B168,SEARCH(" ",$B168&" ")),N(K168),N(K168)+1) -> 84
A171: 32 | B171: C1020/3 | C171: CAREEAU 10X20 RUSTIQUE REF AH2018 1C=0.6M² | D171: 5.36 | E171: 4000 | F171: 4.68 | I171: 0.68
A172: 33 | B172: C1326/1 | C172: CARREAU 13X26 RUSTIQUE REF. AC1310 0.676M2/C | D172: 22.984 | E172: 4000 | F172: 21.632 | I172: 1.352 | K172: =IF(LEFT($B172,SEARCH(" ",$B172&" "))=LEFT($B170,SEARCH(" ",$B170&" ")),N(K170),N(K170)+1) -> 85
A173: 33 | B173: C1326/2 | C173: CARREAU 13X26 RUSTIQUE REF. AC1319 0.676M2/C | D173: 0 | E173: 4000 | F173: 20.28 | H173: 20.28
A174: 33 | B174: C1326/4 | C174: CARREAU 13X26 RUSTIQUE REF. AF1340 0,676M2/C | D174: 57.36 | E174: 4000 | F174: 58.136 | H174: 0.776 | K174: =IF(LEFT($B174,SEARCH(" ",$B174&" "))=LEFT($B172,SEARCH(" ",$B172&" ")),N(K172),N(K172)+1) -> 86
A175: 33 | B175: C1428/2 | C175: CARREAU 14X28 RUSTIQUE BEIGE REF. H1401 0.588M2/C | D175: 19.417 | E175: 4350 | F175: 37.04 | H175: 17.623
A176: 33 | B176: C1428/3 | C176: CARREAU 14X28 RUSTIQUE BEIGE REF. N* 2812 0.988M2/C | D176: 158.949 | E176: 4350 | F176: 157.092 | I176: 1.857 | K176: =IF(LEFT($B176,SEARCH(" ",$B176&" "))=LEFT($B174,SEARCH(" ",$B174&" ")),N(K174),N(K174)+1) -> 87
A177: 33 | B177: C1428/5 | C177: CARREAU 14X28 RUSTIQUE BEIGE REF. N* G1401 0.588M2/C | D177: 18.652 | E177: 4350 | F177: 4.764 | I177: 13.888
A178: 33 | B178: C1428/6 | C178: CARREAU 14X28 RUSTIQUE ROUGE REF. N* G1407 0.588M2/C | D178: 45.864 | E178: 4350 | F178: 19.4 | G178: 19.4 | I178: 26.464 | K178: =IF(LEFT($B178,SEARCH(" ",$B178&" "))=LEFT($B176,SEARCH(" ",$B176&" ")),N(K176),N(K176)+1) -> 88
A179: 33 | B179: C1428/4 | C179: CARREAU 14X28 RUSTIQUE ROUGE REF. N*2816 0.988M2/C | D179: 24.761 | E179: 4350 | F179: 72.124 | H179: 47.363
A180: 33 | B180: C1428/7 | C180: CARREAU 14X28 RUSTIQUE VERT REF. N*H1405 0.627M²/C | D180: 23.12 | E180: 4350 | F180: 53.922 | H180: 30.802 | K180: =IF(LEFT($B180,SEARCH(" ",$B180&" "))=LEFT($B178,SEARCH(" ",$B178&" ")),N(K178),N(K178)+1) -> 89
A181: 33 | B181: C1428/8 | C181: CARREAU 14X28 RUSTIQUE VERT REF.N*G1405 0.588M²/C | D181: 62.916 | E181: 4350 | F181: 33.516 | I181: 29.4
A182: 33 | B182: C167 | C182: CARREAU 15X15 BLANC LEGER 1C =1M2 | D182: 126 | E182: 2350 | F182: 0 | I182: 126 | K182: =IF(LEFT($B182,SEARCH(" ",$B182&" "))=LEFT($B180,SEARCH(" ",$B180&" ")),N(K180),N(K180)+1) -> 90
A183: 33 | B183: C2025/3 | C183: CARREAU 20X25 ITALIA ARMONI BLEU 1.5M²/C | D183: 301.45 | E183: 4275 | F183: 312 | H183: 10.55
A184: 33 | B184: C2025/2 | C184: CARREAU 20X25 ITALIA BETON GRIS FONCE 1.85M²/C | D184: 386.6 | E184: 3600 | F184: 390.35 | H184: 3.75 | K184: =IF(LEFT($B184,SEARCH(" ",$B184&" "))=LEFT($B182,SEARCH(" ",$B182&" ")),N(K182),N(K182)+1) -> 91
A185: 33 | B185: C2030/70 | C185: CARREAU 20X30 JADE D. VERT 1.5M2/C | D185: 108 | E185: 2900 | F185: 56.4 | G185: 2.4 | I185: 51.6
A186: 33 | B186: C2030/101 | C186: CARREAU 20X30 M32A20302 1.5M2/C | D186: 52.02 | E186: 2900 | F186: 60 | H186: 7.98 | K186: =IF(LEFT($B186,SEARCH(" ",$B186&" "))=LEFT($B184,SEARCH(" ",$B184&" ")),N(K184),N(K184)+1) -> 92
A187: 33 | B187: C2030/100 | C187: CARREAU 20X30 M32A20306 1.5M2/C | D187: 63 | E187: 2900 | F187: 51 | I187: 12
A188: 33 | B188: C2030/60 | C188: CARREAU 20X30 MASSA D. GRIS 1.5M2/C | D188: 41.88 | E188: 2900 | F188: 37.5 | G188: 37.5 | I188: 4.38 | K188: =IF(LEFT($B188,SEARCH(" ",$B188&" "))=LEFT($B186,SEARCH(" ",$B186&" ")),N(K186),N(K186)+1) -> 93
A189: 33 | B189: C2030/61 | C189: CARREAU 20X30 MASSA D. ROSE 1.5M2/C | D189: 186 | E189: 2900 | F189: 183 | I189: 3
A190: 33 | B190: C2030/57 | C190: CARREAU 20X30 MASSA L GRIS 1.5M2/C | D190: 18.34 | E190: 3000 | F190: 0 | I190: 18.34 | K190: =IF(LEFT($B190,SEARCH(" ",$B190&" "))=LEFT($B188,SEARCH(" ",$B188&" ")),N(K188),N(K188)+1) -> 94
A191: 33 | B191: C2030/59 | C191: CARREAU 20X30 MASSA L. BEIGE 1.5M2/C | D191: 13.5 | E191: 2900 | F191: 0 | I191: 13.5
A192: 33 | B192: C2030/73 | C192: CARREAU 20X30 MASSA WIN BEIGE DECOR/PLAQUE | D192: 70 | E192: 1250 | F192: 0 | I192: 70 | K192: =IF(LEFT($B192,SEARCH(" ",$B192&" "))=LEFT($B190,SEARCH(" ",$B190&" ")),N(K190),N(K190)+1) -> 95
A193: 33 | B193: C2030/86 | C193: CARREAU 20X30 REF 2313L BLANC 1.5M²/C | D193: 33 | E193: 2900 | F193: 0 | I193: 33
A194: 33 | B194: C2030/91 | C194: CARREAU 20X30 REF 2609 BLANC 1.5M²/C | D194: 135 | E194: 2900 | F194: 175.5 | H194: 40.5 | K194: =IF(LEFT($B194,SEARCH(" ",$B194&" "))=LEFT($B192,SEARCH(" ",$B192&" ")),N(K192),N(K192)+1) -> 96
A195: 33 | B195: C2030/89 | C195: CARREAU 20X30 REF 306 BLANC 1.5M²/C | D195: 124.5 | E195: 2900 | F195: 126 | G195: 1.5 | H195: 1.5
A196: =IF(LEFT($C196,SEARCH(" ",$C196&" "))=LEFT($C195,SEARCH(" ",$C195&" ")),N(A195),N(A195)+1) -> 33 | B196: C2030/105 | C196: CARREAU 20X30 REF M32A100524 1.5M²/C | D196: 70.5 | E196: 2900 | F196: 61.5 | I196: 9 | K196: =IF(LEFT($B196,SEARCH(" ",$B196&" "))=LEFT($B194,SEARCH(" ",$B194&" ")),N(K194),N(K194)+1) -> 97
A197: 33 | B197: C2030/90 | C197: CARREAU 20X30 REF S23005 BLANC 1.5M²/C | D197: 175.5 | E197: 2900 | F197: 154.5 | I197: 21
A198: 33 | B198: C2030/34 | C198: CARREAU 20X30 REF.7147B | D198: 15 | E198: 2900 | F198: 0 | I198: 15 | K198: =IF(LEFT($B198,SEARCH(" ",$B198&" "))=LEFT($B196,SEARCH(" ",$B196&" ")),N(K196),N(K196)+1) -> 98
A199: 33 | B199: C2030/33 | C199: CARREAU 20X30 REF.7147D 1.5M2/C | D199: 12 | E199: 2900 | F199: 0 | I199: 12
A200: 33 | B200: C2030/38 | C200: CARREAU 20X30 REF.8003A 1.5M2/C | D200: 15 | E200: 3280 | F200: 6 | G200: 6 | I200: 9 | K200: =IF(LEFT($B200,SEARCH(" ",$B200&" "))=LEFT($B198,SEARCH(" ",$B198&" ")),N(K198),N(K198)+1) -> 99
... 950 more rows

Sheet Feuil2
A1: Familles | B1: CODES | C1: DESIGNATIONS | D1: S. O | E1: P. U | F1: S. PHY | K1: SURPLUS | L1: MANQUANT
G2: ECARTS | I2: REGULARISATION
A3: =IF(LEFT($C3,SEARCH(" ",$C3&" "))=LEFT($C2,SEARCH(" ",$C2&" ")),N(A2),N(A2)+1) -> 1 | B3: A271 | C3: AMPOULE PHILIPS B22 60W | D3: 0 | E3: 200 | F3: 20 | G3: 14 | H3: 20
A4: =IF(LEFT($C4,SEARCH(" ",$C4&" "))=LEFT($C3,SEARCH(" ",$C3&" ")),N(A3),N(A3)+1) -> 1 | B4: A51 | C4: AMPOULE B22 TESLA BLANC 40W | D4: 458 | E4: 100 | F4: 332 | G4: 132 | I4: 126 | K4: =IF(LEFT($B4,SEARCH(" ",$B4&" "))=LEFT(#REF!,SEARCH(" ",#REF!&" ")),N(#REF!),N(#REF!)+1) -> 
A5: 1 | B5: A546 | C5: AMPOULE ECO LED B22 REF E02B02 BLANC 7W | D5: 120 | E5: 3000 | F5: 126 | H5: 6
A6: 1 | B6: A458 | C6: AMPOULE ECO PHILIP E27 | D6: 44 | E6: 1200 | F6: 35 | G6: 11 | I6: 9
A7: 1 | B7: A91 | C7: AMPOULE SPOT E27 BLANC 75W R60 | D7: 391 | E7: 400 | F7: 300 | G7: =IF(F7>D7,F7-D7,"") ->  | H7: =IF(F7<D7,D7-F7,"") -> 91 | J7: 91 | K7: =IF(G7=I7,"",G7-I7) -> 
A9: =IF(LEFT($C9,SEARCH(" ",$C9&" "))=LEFT($C7,SEARCH(" ",$C7&" ")),N(A7),N(A7)+1) -> 2 | B9: A128 | C9: ARRACHE CLOU DE 80 | D9: 36 | E9: 2000 | F9: 60 | G9: 24 | I9: 24
A11: =IF(LEFT($C11,SEARCH(" ",$C11&" "))=LEFT($C9,SEARCH(" ",$C9&" ")),N(A9),N(A9)+1) -> 3 | B11: B139 | C11: BOITE DE DERIVATION REF 2313 | D11: 0 | E11: 725 | F11: 45 | G11: 45 | I11: 45
A13: =IF(LEFT($C13,SEARCH(" ",$C13&" "))=LEFT($C11,SEARCH(" ",$C11&" ")),N(A11),N(A11)+1) -> 4 | B13: B172 | C13: BOUCHON GALVA MALE 20/27 | D13: 399 | E13: 50 | F13: 441 | G13: =IF(F13>D13,F13-D13,"") -> 42 | I13: 42
A14: =IF(LEFT($C14,SEARCH(" ",$C14&" "))=LEFT($C13,SEARCH(" ",$C13&" ")),N(A13),N(A13)+1) -> 4 | B14: B173 | C14: BOUCHON GALVA MALE 26/34 | D14: 67 | E14: 80 | F14: 69 | G14: 2 | I14: 2
A15: 4 | B15: B520 | C15: BOUCHON GALVA MALE 33/42 | D15: 17 | E15: 150 | F15: 18 | G15: 1 | I15: 1
A16: 4 | B16: B177 | C16: BOUCHON PVC DE 63 | D16: 196 | E16: 500 | F16: 193 | H16: =IF(F16<D16,D16-F16,"") -> 3 | J16: 3
A17: 4 | B17: B178 | C17: BOUCHON PVC DE 100 | D17: 453 | E17: 1100 | F17: 462 | G17: 9 | I17: 5 | K17: 4
A19: =IF(LEFT($C19,SEARCH(" ",$C19&" "))=LEFT($C17,SEARCH(" ",$C17&" ")),N(A17),N(A17)+1) -> 5 | B19: B630 | C19: BROSSE METALIQUE JEUX 3 PIECES | D19: 237 | E19: 1000 | F19: 481 | G19: 244 | I19: 226 | K19: 18
A20: 5 | B20: B379 | C20: BROSSE METALIQUE RONDEDE 65MM | D20: 43 | E20: 450 | F20: 46 | G20: 3 | K20: =IF(G20=I20,"",G20-I20) -> 3
A21: 5 | B21: B623 | C21: BROSSE METALLIQUE 6 RANGEES | D21: 484 | E21: 300 | F21: 112 | H21: 372 | J21: 372
A22: 5 | B22: B1052 | C22: BROSSE METALLIQUE JEUX 3PIECES REF 11118 | D22: 171 | E22: 900 | F22: 57 | H22: 114 | J22: 114
A23: 5 | B23: B635 | C23: BROSSE METALLIQUE M/PLAST 4RANGEES | D23: 406 | E23: 450 | F23: 388 | H23: 18 | J23: 18

Sheet Feuil3
A1: n° article | B1: CODES | C1: DESIGNATIONS | D1: S. O | E1: P. U | F1: S. PHY | G1: AVARIES | H1: ECARTS | J1: OBSER | K1: n° article
H2: + | I2: -
A4: =IF(LEFT($C4,SEARCH(" ",$C4&" "))=LEFT($C2,SEARCH(" ",$C2&" ")),N(A2),N(A2)+1) -> 1 | B4: A488 | C4: ABATTANT WC BLANC LOURD | D4: 167 | E4: 4500 | F4: 146 | I4: 21 | K4: =IF(LEFT($C4,SEARCH(" ",$C4&" "))=LEFT($C2,SEARCH(" ",$C2&" ")),N(K2),N(K2)+1) -> 1
A5: =IF(LEFT($C5,SEARCH(" ",$C5&" "))=LEFT($C4,SEARCH(" ",$C4&" ")),N(A4),N(A4)+1) -> 1 | B5: A5 | C5: ABATTANT WC BLEU | D5: 5 | E5: 2500 | F5: 19 | G5: 7 | H5: 14 | K5: =IF(LEFT($C5,SEARCH(" ",$C5&" "))=LEFT($C4,SEARCH(" ",$C4&" ")),N(K4),N(K4)+1) -> 1
A6: 1 | B6: A462 | C6: ABATTANT WC LOURD ROSE | D6: 13 | E6: 2825 | F6: 0 | I6: 13 | K6: 1
A8: =IF(LEFT($C8,SEARCH(" ",$C8&" "))=LEFT($C6,SEARCH(" ",$C6&" ")),N(A6),N(A6)+1) -> 2 | B8: A10 | C8: ACIDE CHLORIDRIQUE 1L | D8: 6 | E8: 500 | F8: 10 | G8: 10 | H8: 4 | K8: =IF(LEFT($C8,SEARCH(" ",$C8&" "))=LEFT($C6,SEARCH(" ",$C6&" ")),N(K6),N(K6)+1) -> 2
A10: =IF(LEFT($C10,SEARCH(" ",$C10&" "))=LEFT($C8,SEARCH(" ",$C8&" ")),N(A8),N(A8)+1) -> 3 | B10: A456 | C10: AGRAFE 8/4 | D10: 20 | E10: 170 | I10: 20 | J10: BPS | K10: =IF(LEFT($C10,SEARCH(" ",$C10&" "))=LEFT($C8,SEARCH(" ",$C8&" ")),N(K8),N(K8)+1) -> 3
A12: =IF(LEFT($C12,SEARCH(" ",$C12&" "))=LEFT($C10,SEARCH(" ",$C10&" ")),N(A10),N(A10)+1) -> 4 | B12: A321 | C12: AMPOULE E14 POINTU 40W EMKAY | D12: 0 | E12: 60 | F12: 101 | G12: 101 | H12: 101 | K12: =IF(LEFT($C12,SEARCH(" ",$C12&" "))=LEFT($C10,SEARCH(" ",$C10&" ")),N(K10),N(K10)+1) -> 4
A13: =IF(LEFT($C13,SEARCH(" ",$C13&" "))=LEFT($C12,SEARCH(" ",$C12&" ")),N(A12),N(A12)+1) -> 4 | B13: A271 | C13: AMPOULE PHILIPS B22 60W | D13: 0 | E13: 200 | F13: 20 | G13: 14 | H13: 20 | K13: =IF(LEFT($C13,SEARCH(" ",$C13&" "))=LEFT($C12,SEARCH(" ",$C12&" ")),N(K12),N(K12)+1) -> 4
A14: 4 | B14: A51 | C14: AMPOULE B22 TESLA BLANC 40W | D14: 458 | E14: 100 | F14: 332 | G14: 132 | I14: 126 | K14: 4
A15: 4 | B15: A546 | C15: AMPOULE ECO LED B22 REF E02B02 BLANC 7W | D15: 120 | E15: 3000 | F15: 126 | H15: 6 | K15: 4
A16: 4 | B16: A458 | C16: AMPOULE ECO PHILIP E27 | D16: 44 | E16: 1200 | F16: 35 | G16: 11 | I16: 9 | K16: 4
A17: 4 | B17: A543 | C17: AMPOULE ECO PHILIPS E27 11W 3U PM | D17: 1 | E17: 1500 | F17: 0 | I17: 1 | K17: 4
A18: 4 | B18: A459 | C18: AMPOULE ECO PHILIPS E27 14W | D18: 36 | E18: 1500 | F18: 0 | I18: 36 | K18: 4
A19: 4 | B19: A566 | C19: AMPOULE ECO VIRONY B22 ES-003 DE 105W | D19: 0 | E19: 3000 | F19: 7 | G19: 7 | H19: 7 | K19: 4
A20: 4 | B20: A216 | C20: AMPOULE ECONOMIQUE E27 2U 18W ESL (CJB) | D20: 36 | E20: 500 | F20: 20 | G20: 8 | I20: 16 | K20: 4
A21: 4 | B21: A453 | C21: AMPOULE MAF DIRECT 450W | D21: 8 | E21: 2070 | F21: 6 | I21: 2 | K21: 4
A22: 4 | B22: A192 | C22: AMPOULE MAF E27 DIRECT 250W | D22: 45 | E22: 1350 | F22: 66 | G22: 56 | H22: 21 | K22: 4
A23: 4 | B23: A309 | C23: AMPOULE MAF E40 INDIRECT 250W | D23: 1 | E23: 1220 | F23: 42 | G23: 2 | H23: 41 | K23: 4
A24: 4 | B24: A282 | C24: AMPOULE SPOT E27 60W R80 TOUTES COULEURS | D24: 425 | E24: 400 | F24: 560 | G24: 1 | H24: 135 | K24: 4
A25: 4 | B25: A280 | C25: AMPOULE SPOT E27 40W R80 | D25: 206 | E25: 350 | F25: 175 | G25: 1 | I25: 31 | K25: 4
A26: 4 | B26: A91 | C26: AMPOULE SPOT E27 BLANC 75W R60 | D26: 391 | E26: 400 | F26: 300 | I26: 91 | K26: 4
A28: =IF(LEFT($C28,SEARCH(" ",$C28&" "))=LEFT($C26,SEARCH(" ",$C26&" ")),N(A26),N(A26)+1) -> 5 | B28: A415 | C28: ANTICHOC ALU DE 60 CM DROIT | D28: 92 | E28: 2200 | F28: 123 | H28: 31 | K28: =IF(LEFT($C28,SEARCH(" ",$C28&" "))=LEFT($C26,SEARCH(" ",$C26&" ")),N(K26),N(K26)+1) -> 5
A30: =IF(LEFT($C30,SEARCH(" ",$C30&" "))=LEFT($C28,SEARCH(" ",$C28&" ")),N(A28),N(A28)+1) -> 6 | B30: A111 | C30: ANTI-CHOC ALU DE 60 CM | D30: 125 | E30: 2000 | F30: 104 | I30: 21 | K30: =IF(LEFT($C30,SEARCH(" ",$C30&" "))=LEFT($C28,SEARCH(" ",$C28&" ")),N(K28),N(K28)+1) -> 6
A31: 6 | B31: A585 | C31: ANTI-CHOC ALU DROIT 80CM | D31: 59 | E31: 3500 | F31: 56 | I31: 3 | K31: 6
A33: =IF(LEFT($C33,SEARCH(" ",$C33&" "))=LEFT($C31,SEARCH(" ",$C31&" ")),N(A31),N(A31)+1) -> 7 | B33: A394 | C33: ANTI-ROUILLE BR 1.2KG CAMERO PEINT | D33: 237 | E33: 1750 | F33: 238 | H33: 1 | K33: =IF(LEFT($C33,SEARCH(" ",$C33&" "))=LEFT($C31,SEARCH(" ",$C31&" ")),N(K31),N(K31)+1) -> 7
A34: 7 | B34: A259 | C34: ANTI-ROUILLE BRUN 1KG MPCC | D34: 110 | E34: 1950 | F34: 111 | G34: 1 | H34: 1 | K34: 7
A35: 7 | B35: A286 | C35: ANTI-ROUILLE BRUN EN 5KG MPCC | D35: 16 | E35: 9900 | F35: 25 | H35: 9 | K35: 7
A36: 7 | B36: A204 | C36: ANTI-ROUILLE ORANGE 2KG MPCC | D36: 1 | E36: 4300 | F36: 0 | I36: 1 | K36: 7
A37: 7 | B37: A275 | C37: ANTI-ROUILLE ORANGE DE 5 KG MPCC | D37: 9 | E37: 10800 | F37: 0 | I37: 9 | K37: 7
A39: =IF(LEFT($C39,SEARCH(" ",$C39&" "))=LEFT($C37,SEARCH(" ",$C37&" ")),N(A37),N(A37)+1) -> 8 | B39: A370 | C39: ARRACHE CLOU DE 40 | D39: 37 | E39: 900 | F39: 32 | I39: 5 | K39: =IF(LEFT($C39,SEARCH(" ",$C39&" "))=LEFT($C37,SEARCH(" ",$C37&" ")),N(K37),N(K37)+1) -> 8
A40: 8 | B40: A125 | C40: ARRACHE CLOU DE 50 | D40: 6 | E40: 1500 | F40: 9 | H40: 3 | K40: 8
A41: 8 | B41: A126 | C41: ARRACHE CLOU DE 60 | D41: 34 | E41: 1300 | F41: 36 | H41: 2 | K41: 8
A42: 8 | B42: A127 | C42: ARRACHE CLOU DE 70 | D42: 74 | E42: 2200 | F42: 6 | I42: 68 | K42: 8
A43: 8 | B43: A128 | C43: ARRACHE CLOU DE 80 | D43: 36 | E43: 2000 | F43: 60 | H43: 24 | K43: 8
A45: =IF(LEFT($C45,SEARCH(" ",$C45&" "))=LEFT($C43,SEARCH(" ",$C43&" ")),N(A43),N(A43)+1) -> 9 | B45: A177 | C45: ATTACHE ELECT DE 14/100P | D45: 68 | E45: 500 | F45: 49 | I45: 19 | K45: =IF(LEFT($C45,SEARCH(" ",$C45&" "))=LEFT($C43,SEARCH(" ",$C43&" ")),N(K43),N(K43)+1) -> 9
A46: 9 | B46: A170 | C46: ATTACHE ELECT DE 5/100P | D46: 4 | E46: 700 | F46: 0 | I46: 4 | K46: 9
A47: 9 | B47: A172 | C47: ATTACHE ELECT DE 7/100PCES | D47: 82 | E47: 125 | F47: 70 | I47: 12 | K47: 9
A48: 9 | B48: A174 | C48: ATTACHE ELECT DE 9/100PCES | D48: 0 | E48: 150 | F48: 3 | H48: 3 | K48: 9
A50: =IF(LEFT($C50,SEARCH(" ",$C50&" "))=LEFT($C48,SEARCH(" ",$C48&" ")),N(A48),N(A48)+1) -> 10 | B50: A301 | C50: AUGE MACON PROGON DE 35 L REF 7735 | D50: 1 | E50: 6000 | F50: 0 | I50: 1 | K50: =IF(LEFT($C50,SEARCH(" ",$C50&" "))=LEFT($C48,SEARCH(" ",$C48&" ")),N(K48),N(K48)+1) -> 10
A52: =IF(LEFT($C52,SEARCH(" ",$C52&" "))=LEFT($C50,SEARCH(" ",$C50&" ")),N(A50),N(A50)+1) -> 11 | B52: B33 | C52: BALAI CANTONNIER NYLON ROUGE | D52: 243 | E52: 2500 | F52: 99 | I52: 144 | K52: =IF(LEFT($C52,SEARCH(" ",$C52&" "))=LEFT($C50,SEARCH(" ",$C50&" ")),N(K50),N(K50)+1) -> 11
A54: =IF(LEFT($C54,SEARCH(" ",$C54&" "))=LEFT($C52,SEARCH(" ",$C52&" ")),N(A52),N(A52)+1) -> 12 | B54: B61 | C54: BANDE ADHESIVE DE 25 CM | D54: 307 | E54: 200 | F54: 7 | I54: 300 | K54: =IF(LEFT($C54,SEARCH(" ",$C54&" "))=LEFT($C52,SEARCH(" ",$C52&" ")),N(K52),N(K52)+1) -> 12
A55: 12 | B55: B646 | C55: BANDE THERMIQUE 57X40 | D55: 79 | E55: 300 | I55: 79 | J55: BPS | K55: 12
A56: 12 | B56: B670 | C56: BANDE THERMIQUE 57X56 | D56: 13 | E56: 1500 | I56: 13 | J56: BPS | K56: 12
A58: =IF(LEFT($C58,SEARCH(" ",$C58&" "))=LEFT($C56,SEARCH(" ",$C56&" ")),N(A56),N(A56)+1) -> 13 | B58: B1092 | C58: BARRE A MINE DE 1.750M FRANCAIS | D58: 5 | E58: 22100 | F58: 4 | I58: 1 | K58: =IF(LEFT($C58,SEARCH(" ",$C58&" "))=LEFT($C56,SEARCH(" ",$C56&" ")),N(K56),N(K56)+1) -> 13
A59: 13 | B59: B75 | C59: BARRE A MINE DE 1.80 M | D59: 20 | E59: 10300 | F59: 3 | I59: 17 | K59: 13
A60: 13 | B60: B76 | C60: BARRE A MINE DE 2M | D60: 19 | E60: 11000 | F60: 38 | H60: 19 | K60: 13
A61: 13 | B61: B1093 | C61: BARRE AMINE DE 2M FRANCAIS | D61: 5 | E61: 28250 | F61: 4 | I61: 1 | K61: 13
A63: =IF(LEFT($C63,SEARCH(" ",$C63&" "))=LEFT($C61,SEARCH(" ",$C61&" ")),N(A61),N(A61)+1) -> 14 | B63: B611 | C63: BATICIT A EAU BLANC DE 25 KG IMP. | D63: 1 | E63: 10500 | F63: 0 | I63: 1 | K63: =IF(LEFT($C63,SEARCH(" ",$C63&" "))=LEFT($C61,SEARCH(" ",$C61&" ")),N(K61),N(K61)+1) -> 14
A65: =IF(LEFT($C65,SEARCH(" ",$C65&" "))=LEFT($C63,SEARCH(" ",$C63&" ")),N(A63),N(A63)+1) -> 15 | B65: B192 | C65: BATILAC A HUILE GRIS FONCE DE 2,5 KG | D65: 0 | E65: 3000 | F65: 2 | H65: 2 | K65: =IF(LEFT($C65,SEARCH(" ",$C65&" "))=LEFT($C63,SEARCH(" ",$C63&" ")),N(K63),N(K63)+1) -> 15
A66: 15 | B66: B43 | C66: BATILAC A HUILE MARRON CLAIRE EN 2.5KG | D66: 5 | E66: 3500 | F66: 0 | I66: 5 | K66: 15
A67: 15 | B67: B56 | C67: BATILAC A HUILE NOIR EN 2.5KG | D67: 1 | E67: 3500 | F67: 0 | I67: 1 | K67: 15
A68: 15 | B68: B608 | C68: BATILAC A HUILE JAUNE CUBA EN 2.5KG | D68: 8 | E68: 3000 | F68: 16 | H68: 8 | K68: 15
A69: 15 | B69: B620 | C69: BATILAC A HUILE ROUGE DE 2,5 KG | D69: 0 | E69: 3000 | F69: 2 | H69: 2 | K69: 15
A70: 15 | B70: B649 | C70: BATILAC A HUILE VERT JARDIN EN 2.5KG | D70: 1 | E70: 3500 | F70: 5 | G70: 1 | H70: 4 | K70: 15
A71: 15 | B71: B662 | C71: BATILAC A HUILE BLANC DE 2,5 KG | D71: 0 | E71: 3500 | F71: 1 | H71: 1 | K71: 15
A72: 15 | B72: B944 | C72: BATILAC A HUILE GRIS FONCE DE 1KG | D72: 1 | E72: 1000 | F72: 0 | I72: 1 | K72: 15
A73: 15 | B73: B947 | C73: BATILAC A HUILE VERT FONCE DE 1KG | D73: 2 | E73: 1000 | F73: 0 | I73: 2 | K73: 15
A74: 15 | B74: B952 | C74: BATILAC A HUILE JAUNE OXYDE DE 1KG | D74: 0 | E74: 1000 | F74: 1 | H74: 1 | K74: 15
A75: 15 | B75: B954 | C75: BATILAC A HUILE VERT POIVRON DE 2,5KG | D75: 3 | E75: 3000 | F75: 0 | I75: 3 | K75: 15
A76: 15 | B76: B957 | C76: BATILAC HUILE MARRON FONCE EN 2.5KGS | D76: 58 | E76: 3000 | F76: 0 | I76: 58 | K76: 15
A78: =IF(LEFT($C78,SEARCH(" ",$C78&" "))=LEFT($C76,SEARCH(" ",$C76&" ")),N(A76),N(A76)+1) -> 16 | B78: B585 | C78: BATITEINTE BLEU IMP EN 180 G | D78: 14 | E78: 800 | F78: 13 | I78: 1 | K78: =IF(LEFT($C78,SEARCH(" ",$C78&" "))=LEFT($C76,SEARCH(" ",$C76&" ")),N(K76),N(K76)+1) -> 16
A79: 16 | B79: B96 | C79: BATITEINTE MARRON IMP. 180G | D79: 361 | E79: 800 | F79: 426 | H79: 65 | K79: 16
A80: 16 | B80: B633 | C80: BATITEINTE NOIR IMP EN 180 G | D80: 71 | E80: 800 | F80: 69 | I80: 2 | K80: 16
A81: 16 | B81: B631 | C81: BATITEINTE ROUGE IMP EN 180 G | D81: 53 | E81: 800 | F81: 47 | I81: 6 | K81: 16
A83: =IF(LEFT($C83,SEARCH(" ",$C83&" "))=LEFT($C81,SEARCH(" ",$C81&" ")),N(A81),N(A81)+1) -> 17 | B83: B645 | C83: BATTERIE ONDULEUR 12V/12AP | D83: 2 | E83: 15350 | G83: 2 | I83: 2 | J83: BPS | K83: =IF(LEFT($C83,SEARCH(" ",$C83&" "))=LEFT($C81,SEARCH(" ",$C81&" ")),N(K81),N(K81)+1) -> 17
A84: 17 | B84: B659 | C84: BATTERIE ONDULEUR 7H 12 AP | D84: 3 | E84: 12000 | G84: 3 | I84: 3 | J84: BPS | K84: 17
A86: =IF(LEFT($C86,SEARCH(" ",$C86&" "))=LEFT($C84,SEARCH(" ",$C84&" ")),N(A84),N(A84)+1) -> 18 | B86: B1078 | C86: BIC BLEU BEIFA EN PQT DE 50 PIECES | D86: 1 | E86: 2200 | G86: 1 | I86: 1 | J86: BPS | K86: =IF(LEFT($C86,SEARCH(" ",$C86&" "))=LEFT($C84,SEARCH(" ",$C84&" ")),N(K84),N(K84)+1) -> 18
A87: =IF(LEFT($C87,SEARCH(" ",$C87&" "))=LEFT($C86,SEARCH(" ",$C86&" ")),N(A86),N(A86)+1) -> 18 | B87: B732 | C87: BIC BLEU CH | D87: 144 | E87: 75 | G87: 144 | I87: 144 | J87: BPS | K87: =IF(LEFT($C87,SEARCH(" ",$C87&" "))=LEFT($C86,SEARCH(" ",$C86&" ")),N(K86),N(K86)+1) -> 18
A88: 18 | B88: B877 | C88: BIC BLEU EN PAQUET DE 50 | D88: 200 | E88: 1000 | G88: 200 | I88: 200 | J88: BPS | K88: 18
A89: 18 | B89: B879 | C89: BIC NOIR EN PAQUET DE 50 | D89: 198 | E89: 1000 | G89: 198 | I89: 198 | J89: BPS | K89: 18
A90: 18 | B90: B734 | C90: BIC ROUGE CH | D90: 100 | E90: 75 | G90: 100 | I90: 100 | J90: BPS | K90: 18
A91: 18 | B91: B878 | C91: BIC ROUGE EN PIECES | D91: 6350 | E91: 100 | G91: 6350 | I91: 6350 | J91: BPS | K91: 18
A93: =IF(LEFT($C93,SEARCH(" ",$C93&" "))=LEFT($C91,SEARCH(" ",$C91&" ")),N(A91),N(A91)+1) -> 19 | B93: B6111 | C93: BLOC CUBIQUE | D93: 10 | E93: 500 | I93: 10 | J93: BPS | K93: =IF(LEFT($C93,SEARCH(" ",$C93&" "))=LEFT($C91,SEARCH(" ",$C91&" ")),N(K91),N(K91)+1) -> 19
A94: 19 | B94: B5766 | C94: BLOC NOTE GM | D94: 5 | E94: 620 | I94: 5 | J94: BPS | K94: 19
A95: 19 | B95: B573 | C95: BLOC NOTE PM | D95: 10 | E95: 325 | I95: 10 | J95: BPS | K95: 19
A97: =IF(LEFT($C97,SEARCH(" ",$C97&" "))=LEFT($C95,SEARCH(" ",$C95&" ")),N(A95),N(A95)+1) -> 20 | B97: B132 | C97: BOITE DE DERIVATION 150 X 150 | D97: 70 | E97: 1900 | F97: 67 | I97: 3 | K97: =IF(LEFT($C97,SEARCH(" ",$C97&" "))=LEFT($C95,SEARCH(" ",$C95&" ")),N(K95),N(K95)+1) -> 20
A98: 20 | B98: B140 | C98: BOITE DE DERIVATION ENC 2316 | D98: 52 | E98: 1100 | F98: 1 | I98: 51 | K98: 20
A99: 20 | B99: B1004 | C99: BOITE DE DERIVATION ETANCHE IP44 80X80X40 | D99: 49 | E99: 400 | F99: 50 | H99: 1 | K99: 20
A100: 20 | B100: B138 | C100: BOITE DE DERIVATION REF 2310 | D100: 359 | E100: 450 | F100: 370 | G100: 1 | H100: 11 | K100: 20
A101: 20 | B101: B139 | C101: BOITE DE DERIVATION REF 2313 | D101: 0 | E101: 725 | F101: 45 | H101: 45 | K101: 20
A102: 20 | B102: B545 | C102: BOITE ETANCHE RONDE 80X50 | D102: 59 | E102: 575 | F102: 63 | H102: 4 | K102: 20
A104: =IF(LEFT($C104,SEARCH(" ",$C104&" "))=LEFT($C102,SEARCH(" ",$C102&" ")),N(A102),N(A102)+1) -> 21 | B104: B1048 | C104: BOITIER KRISBOW REF E08SE8011C | D104: 14 | E104: 250 | F104: 0 | I104: 14 | K104: =IF(LEFT($C104,SEARCH(" ",$C104&" "))=LEFT($C102,SEARCH(" ",$C102&" ")),N(K102),N(K102)+1) -> 21
A105: 21 | B105: B612 | C105: BOITIER VENTOUSE LOURD | D105: 3417 | E105: 60 | F105: 3390 | G105: 2 | I105: 27 | K105: 21
A107: =IF(LEFT($C107,SEARCH(" ",$C107&" "))=LEFT($C105,SEARCH(" ",$C105&" ")),N(A105),N(A105)+1) -> 22 | B107: B6155 | C107: BON DE COMMANDE SQC 99501- 100500 | D107: 7 | E107: 1100 | I107: 7 | J107: BPS | K107: =IF(LEFT($C107,SEARCH(" ",$C107&" "))=LEFT($C105,SEARCH(" ",$C105&" ")),N(K105),N(K105)+1) -> 22
A108: 22 | B108: B1046 | C108: BON DE MANUTENTION CAISSE DEPENSE | D108: 10 | E108: 240 | I108: 10 | J108: BPS | K108: 22
A109: 22 | B109: B5477 | C109: BON DE RECEPTION COMMANDE CLIENT | D109: 1 | E109: 550 | I109: 1 | J109: BPS | K109: 22
A110: 22 | B110: B29 | C110: BON D'ENTREE SQC | D110: 25 | E110: 550 | I110: 25 | J110: BPS | K110: 22
A112: =IF(LEFT($C112,SEARCH(" ",$C112&" "))=LEFT($C110,SEARCH(" ",$C110&" ")),N(A110),N(A110)+1) -> 23 | B112: B628 | C112: BONDE EVIER SIMPLE 2BACS | D112: 30 | E112: 2150 | F112: 0 | I112: 30 | K112: =IF(LEFT($C112,SEARCH(" ",$C112&" "))=LEFT($C110,SEARCH(" ",$C110&" ")),N(K110),N(K110)+1) -> 23
A113: 23 | B113: B152 | C113: BONDE LAVABO + CHAINE INOX LY468 | D113: 52 | E113: 1700 | F113: 37 | G113: 21 | I113: 15 | K113: 23
A114: 23 | B114: B154 | C114: BONDE POUR RECEVEUR DE DOUCHE | D114: 12 | E114: 2020 | F114: 0 | I114: 12 | K114: 23
A116: =IF(LEFT($C116,SEARCH(" ",$C116&" "))=LEFT($C114,SEARCH(" ",$C114&" ")),N(A114),N(A114)+1) -> 24 | B116: B806 | C116: BOTTE DE SECU EN PVC P41 | D116: 10 | E116: 10350 | F116: 2 | I116: 8 | K116: =IF(LEFT($C116,SEARCH(" ",$C116&" "))=LEFT($C114,SEARCH(" ",$C114&" ")),N(K114),N(K114)+1) -> 24
A117: 24 | B117: B807 | C117: BOTTE DE SECU EN PVC P42 | D117: 1 | E117: 10350 | F117: 0 | I117: 1 | K117: 24
A118: 24 | B118: B808 | C118: BOTTE DE SECU EN PVC P43 | D118: 2 | E118: 10350 | F118: 0 | I118: 2 | K118: 24
A119: 24 | B119: B809 | C119: BOTTE DE SECU EN PVC P44 | D119: 1 | E119: 10350 | F119: 0 | I119: 1 | K119: 24
A120: 24 | B120: B818 | C120: BOTTE DE SECU EN PVC P46 | D120: 1 | E120: 10350 | F120: 0 | I120: 1 | K120: 24
A121: 24 | B121: B574 | C121: BOTTE DE SECURITE BELLOTA DE 40 | D121: 19 | E121: 9000 | F121: 18 | G121: 1 | I121: 1 | K121: 24
A122: 24 | B122: B577 | C122: BOTTE DE SECURITE BELLOTA DE 41 | D122: 25 | E122: 9000 | F122: 36 | G122: 3 | H122: 11 | K122: 24
A123: 24 | B123: B120 | C123: BOTTE DE SECURITE BELLOTA DE 43 | D123: 4 | E123: 9000 | F123: 5 | G123: 1 | H123: 1 | K123: 24
A124: 24 | B124: B737 | C124: BOTTE DE SECURITE ITALY S5 DE 41 | D124: 24 | E124: 11500 | F124: 12 | I124: 12 | K124: 24
A125: 24 | B125: B738 | C125: BOTTE DE SECURITE ITALY S5 DE 43 | D125: 24 | E125: 11500 | F125: 25 | H125: 1 | K125: 24
A126: 24 | B126: B739 | C126: BOTTE DE SECURITE ITALY S5 DE 44 | D126: 35 | E126: 11500 | F126: 23 | I126: 12 | K126: 24
A127: 24 | B127: B160 | C127: BOTTE DE SECURITE ITALY S5 DE 45 | D127: 33 | E127: 11500 | F127: 30 | I127: 3 | K127: 24
A128: 24 | B128: B638 | C128: BOTTE PVC ITALY 41 | D128: 78 | E128: 4500 | F128: 15 | I128: 63 | K128: 24
A129: 24 | B129: B824 | C129: BOTTE PVC ITALY 44 | D129: 277 | E129: 4500 | F129: 347 | H129: 70 | K129: 24
A130: 24 | B130: B823 | C130: BOTTE PVC ITALY 43 | D130: 244 | E130: 4500 | F130: 228 | I130: 16 | K130: 24
A131: 24 | B131: B729 | C131: BOTTE PVC ITALY 45 | D131: 125 | E131: 4500 | F131: 136 | H131: 11 | K131: 24
A132: 24 | B132: B811 | C132: BOTTE PVC ITALY 40 | D132: 3 | E132: 4500 | F132: 5 | H132: 2 | K132: 24
A133: 24 | B133: B822 | C133: BOTTE PVC ITALY 42 | D133: 267 | E133: 4500 | F133: 283 | H133: 16 | K133: 24
A135: =IF(LEFT($C135,SEARCH(" ",$C135&" "))=LEFT($C133,SEARCH(" ",$C133&" ")),N(A133),N(A133)+1) -> 25 | B135: B169 | C135: BOUCHON GALVA FEMELLE 20/27 | D135: 242 | E135: 65 | F135: 154 | I135: 88 | K135: =IF(LEFT($C135,SEARCH(" ",$C135&" "))=LEFT($C133,SEARCH(" ",$C133&" ")),N(K133),N(K133)+1) -> 25
A136: 25 | B136: B170 | C136: BOUCHON GALVA FEMELLE 26/34 | D136: 1 | E136: 120 | F136: 5 | H136: 4 | K136: 25
A137: 25 | B137: B579 | C137: BOUCHON GALVA FEMELLE 40/49 | D137: 13 | E137: 185 | F137: 14 | H137: 1 | K137: 25
A138: 25 | B138: B171 | C138: BOUCHON GALVA MALE 15/21 | D138: 6 | E138: 45 | F138: 0 | I138: 6 | K138: 25
A139: 25 | B139: B172 | C139: BOUCHON GALVA MALE 20/27 | D139: 399 | E139: 50 | F139: 441 | H139: 42 | K139: 25
A140: 25 | B140: B173 | C140: BOUCHON GALVA MALE 26/34 | D140: 67 | E140: 80 | F140: 69 | H140: 2 | K140: 25
A141: 25 | B141: B520 | C141: BOUCHON GALVA MALE 33/42 | D141: 17 | E141: 150 | F141: 18 | H141: 1 | K141: 25
A142: 25 | B142: B1040 | C142: BOUCHON OREILLE VENITEX REF CONICAP 01 | D142: 161 | E142: 500 | F142: 174 | H142: 13 | K142: 25
A143: 25 | B143: B174 | C143: BOUCHON PVC DE 32 | D143: 6 | E143: 200 | F143: 5 | I143: 1 | K143: 25
A144: 25 | B144: B176 | C144: BOUCHON PVC DE 50 | D144: 179 | E144: 300 | F144: 178 | I144: 1 | K144: 25
A145: 25 | B145: B177 | C145: BOUCHON PVC DE 63 | D145: 196 | E145: 500 | F145: 193 | I145: 3 | K145: 25
A146: 25 | B146: B178 | C146: BOUCHON PVC DE 100 | D146: 453 | E146: 1100 | F146: 462 | H146: 9 | K146: 25
A148: =IF(LEFT($C148,SEARCH(" ",$C148&" "))=LEFT($C146,SEARCH(" ",$C146&" ")),N(A146),N(A146)+1) -> 26 | B148: B677 | C148: BOUGIE EN PQUET DE 6PCES REF 075-45 CM | D148: 6 | E148: 650 | F148: 2 | I148: 4 | K148: =IF(LEFT($C148,SEARCH(" ",$C148&" "))=LEFT($C146,SEARCH(" ",$C146&" ")),N(K146),N(K146)+1) -> 26
A150: =IF(LEFT($C150,SEARCH(" ",$C150&" "))=LEFT($C148,SEARCH(" ",$C148&" ")),N(A148),N(A148)+1) -> 27 | B150: B582 | C150: BROSSE A CHAUX | D150: 272 | E150: 400 | F150: 256 | I150: 16 | K150: =IF(LEFT($C150,SEARCH(" ",$C150&" "))=LEFT($C148,SEARCH(" ",$C148&" ")),N(K148),N(K148)+1) -> 27
A151: 27 | B151: B413 | C151: BROSSE A CHAUX 3X12 M/PLASTIQUE | D151: 1 | E151: 350 | F151: 0 | I151: 1 | K151: 27
A152: 27 | B152: B1057 | C152: BROSSE A CHAUX M/P 3X10 REF 6028C | D152: 487 | E152: 550 | F152: 490 | H152: 3 | K152: 27
A153: 27 | B153: B1073 | C153: BROSSE A LINGE VIOLON CHIENENT M/B REF 722300 | D153: 196 | E153: 1700 | F153: 197 | H153: 1 | K153: 27
A154: 27 | B154: B1072 | C154: BROSSE A LINGE VIOLON JAUNE M/P REF 722959 | D154: 331 | E154: 750 | F154: 330 | I154: 1 | K154: 27
A155: 27 | B155: B654 | C155: BROSSE METALIQUE 3RANGEES | D155: 0 | E155: 250 | F155: 1 | G155: 1 | H155: 1 | K155: 27
A156: 27 | B156: B548 | C156: BROSSE METALIQUE 4RANGEES | D156: 1415 | E156: 200 | F156: 1060 | I156: 355 | K156: 27
A157: 27 | B157: B613 | C157: BROSSE METALIQUE 5RANGEES | D157: 1903 | E157: 295 | F157: 2641 | H157: 738 | K157: 27
A158: 27 | B158: B417 | C158: BROSSE METALIQUE EN JEU DE 3 PIECES | D158: 113 | E158: 650 | F158: 8 | I158: 105 | K158: 27
A159: =IF(LEFT($C159,SEARCH(" ",$C159&" "))=LEFT($C158,SEARCH(" ",$C158&" ")),N(A158),N(A158)+1) -> 27 | B159: B630 | C159: BROSSE METALIQUE JEUX 3 PIECES | D159: 237 | E159: 1000 | F159: 481 | H159: 244 | K159: =IF(LEFT($C159,SEARCH(" ",$C159&" "))=LEFT($C158,SEARCH(" ",$C158&" ")),N(K158),N(K158)+1) -> 27
A160: 27 | B160: B379 | C160: BROSSE METALIQUE RONDEDE 65MM | D160: 43 | E160: 450 | F160: 46 | H160: 3 | K160: 27
A161: 27 | B161: B623 | C161: BROSSE METALLIQUE 6 RANGEES | D161: 484 | E161: 300 | F161: 112 | G161: 1 | I161: 372 | K161: 27
A162: 27 | B162: B1052 | C162: BROSSE METALLIQUE JEUX 3PIECES REF 11118 | D162: 171 | E162: 900 | F162: 57 | I162: 114 | K162: 27
A163: 27 | B163: B635 | C163: BROSSE METALLIQUE M/PLAST 4RANGEES | D163: 406 | E163: 450 | F163: 388 | I163: 18 | K163: 27
A165: =IF(LEFT($C165,SEARCH(" ",$C165&" "))=LEFT($C163,SEARCH(" ",$C163&" ")),N(A163),N(A163)+1) -> 28 | B165: B433 | C165: BURIN PLAT PROTEGE DE 200 | D165: 171 | E165: 900 | F165: 335 | H165: 164 | K165: =IF(LEFT($C165,SEARCH(" ",$C165&" "))=LEFT($C163,SEARCH(" ",$C163&" ")),N(K163),N(K163)+1) -> 28
A166: 28 | B166: B434 | C166: BURIN PLAT PROTEGE DE 250 | D166: 110 | E166: 1050 | F166: 112 | H166: 2 | K166: 28
A167: 28 | B167: B603 | C167: BURIN PLAT PROTEGE DE 350 | D167: 66 | E167: 900 | F167: 136 | H167: 70 | K167: 28
A168: 28 | B168: B616 | C168: BURIN PLAT PROTEGE DE 400 | D168: 48 | E168: 1400 | F168: 49 | H168: 1 | K168: 28
A169: 28 | B169: B443 | C169: BURIN POINTU PROTEGE DE 200 | D169: 175 | E169: 500 | F169: 49 | I169: 126 | K169: 28
A170: 28 | B170: B444 | C170: BURIN POINTU PROTEGE DE 250G | D170: 192 | E170: 850 | F170: 67 | I170: 125 | K170: 28
A171: 28 | B171: B446 | C171: BURIN POINTU PROTEGE DE 350 | D171: 109 | E171: 1100 | F171: 68 | I171: 41 | K171: 28
A172: 28 | B172: B447 | C172: BURIN POINTU PROTEGE DE 400 | D172: 128 | E172: 1250 | F172: 179 | H172: 51 | K172: 28
A174: =IF(LEFT($C174,SEARCH(" ",$C174&" "))=LEFT($C172,SEARCH(" ",$C172&" ")),N(A172),N(A172)+1) -> 29 | B174: C2514 | C174: CAHIER 17 X 22 200 PGES REF CS5 | D174: 24 | E174: 290 | F174: 0 | I174: 24 | K174: =IF(LEFT($C174,SEARCH(" ",$C174&" "))=LEFT($C172,SEARCH(" ",$C172&" ")),N(K172),N(K172)+1) -> 29
A175: 29 | B175: C2513 | C175: CAHIER 17 X 22 288 PGES CS6 | D175: 98 | E175: 500 | F175: 51 | I175: 47 | K175: 29
A176: 29 | B176: C2672 | C176: CAHIER 17 X 22 32 PAGES REF CS1 | D176: 455 | E176: 80 | F176: 86 | I176: 369 | K176: 29
A177: 29 | B177: C2674 | C177: CAHIER 17 X 22 384 PGES REF CS7 | D177: 907 | E177: 600 | F177: 862 | I177: 45 | K177: 29
A178: 29 | B178: C2515 | C178: CAHIER 17 X 22 50 PGES REF CS2 | D178: 5265 | E178: 75 | F178: 5229 | I178: 36 | K178: 29
A179: 29 | B179: C2685 | C179: CAHIER 17 X 22 EN 100 PAGES CS3 | D179: 57 | E179: 145 | F179: 53 | I179: 4 | K179: 29
A180: 29 | B180: C2673 | C180: CAHIER 17X22 144PGES CS2 | D180: 0 | E180: 225 | F180: 10 | H180: 10 | K180: 29
A181: 29 | B181: C4108 | C181: CAHIER 17X22 120PGES CS3 | D181: 4961 | E181: 200 | F181: 4705 | I181: 256 | K181: 29
A182: 29 | B182: C4100 | C182: CAHIER 17X22 EN 300PGES SC6 | D182: 2567 | E182: 500 | F182: 3110 | H182: 543 | K182: 29
A183: 29 | B183: C2517 | C183: CAHIER 210X297 100 PAGES | D183: 180 | E183: 400 | F183: 252 | H183: 72 | K183: 29
A184: 29 | B184: C2676 | C184: CAHIER GF GQ 21 X 29.7 200 PGES REF GFG2 | D184: 1279 | E184: 600 | F184: 1487 | H184: 208 | K184: 29
A185: 29 | B185: C4095 | C185: CAHIER GF GQ 21X29.7 EN 300 PAGES TP | D185: 4172 | E185: 1050 | F185: 4167 | I185: 5 | K185: 29
A186: 29 | B186: C2680 | C186: CAHIER SIMPLE ANGLO 17 X 22 20 LEAVES | D186: 1370 | E186: 70 | F186: 569 | I186: 801 | K186: 29
A187: 29 | B187: C2681 | C187: CAHIER SIMPLE ANGLO 17 X 22 40 LEAVES | D187: 0 | E187: 135 | F187: 46 | H187: 46 | K187: 29
A188: 29 | B188: C2683 | C188: CAHIER SIMPLE ANGLO 17 X 22 80 LEAVES | D188: 105 | E188: 200 | F188: 2 | I188: 103 | K188: 29
A189: 29 | B189: C4102 | C189: CAHIER SIMPLE ANGLO (PLANE LINE) 17X22 20 LEAVES | D189: 360 | E189: 70 | F189: 344 | I189: 16 | K189: 29
A190: 29 | B190: C4103 | C190: CAHIER SIMPLE ANGLO (PLANE LINE) 17X22 40 LEAVES | D190: 0 | E190: 135 | F190: 348 | H190: 348 | K190: 29
A191: 29 | B191: C4104 | C191: CAHIER SIMPLE ANGLO (PLANE LINE) 17X22 60 LEAVES | D191: 0 | E191: 275 | F191: 2 | H191: 2 | K191: 29
A192: 29 | B192: C4105 | C192: CAHIER SIMPLE ANGLO (HARD COVER) 21X29.7 200 LEAVES | D192: 2008 | E192: 1000 | F192: 1787 | I192: 221 | K192: 29
A193: 29 | B193: C4106 | C193: CAHIER SIMPLE ANGLO (HARD COVER) 17X29.7 300LEAVES | D193: 705 | E193: 1600 | F193: 712 | H193: 7 | K193: 29
A194: 29 | B194: C4107 | C194: CAHIER SIMPLE ANGLO (HARD COVER) 17X29.7 400LEAVES | D194: 0 | E194: 1900 | F194: 5 | H194: 5 | K194: 29
A195: 29 | B195: C2518 | C195: CAHIER TP 21 X 29.7 144 PGES REF TP1 | D195: 710 | E195: 500 | F195: 702 | I195: 8 | K195: 29
A196: 29 | B196: C2675 | C196: CAHIER TP 21 X 29.7 200 PGES REF TP2 | D196: 220 | E196: 615 | F196: 234 | H196: 14 | K196: 29
A198: =IF(LEFT($C198,SEARCH(" ",$C198&" "))=LEFT($C196,SEARCH(" ",$C196&" ")),N(A196),N(A196)+1) -> 30 | B198: C2532 | C198: CALOT REGLABLE PAPIER 53 BLC (bte 100PCES) REF 45660 | D198: 99 | E198: 5100 | F198: 0 | I198: 99 | K198: =IF(LEFT($C198,SEARCH(" ",$C198&" "))=LEFT($C196,SEARCH(" ",$C196&" ")),N(K196),N(K196)+1) -> 30
A200: =IF(LEFT($C200,SEARCH(" ",$C200&" "))=LEFT($C198,SEARCH(" ",$C198&" ")),N(A198),N(A198)+1) -> 31 | B200: C138 | C200: CAPTEUR REF 5273 | D200: 6 | E200: 7875 | F200: 1 | I200: 5 | K200: =IF(LEFT($C200,SEARCH(" ",$C200&" "))=LEFT($C198,SEARCH(" ",$C198&" ")),N(K198),N(K198)+1) -> 31
A202: =IF(LEFT($C202,SEARCH(" ",$C202&" "))=LEFT($C200,SEARCH(" ",$C200&" ")),N(A200),N(A200)+1) -> 32 | B202: C1020/2 | C202: CAREEAU 10X20 RUSTIQUE REF AH2018 1C=0.6M² | D202: 0 | E202: 4000 | F202: 10.2 | H202: 10.2 | K202: =IF(LEFT($C202,SEARCH(" ",$C202&" "))=LEFT($C200,SEARCH(" ",$C200&" ")),N(K200),N(K200)+1) -> 32
A203: 32 | B203: C1020/3 | C203: CAREEAU 10X20 RUSTIQUE REF AH2018 1C=0.6M² | D203: 5.36 | E203: 4000 | F203: 4.68 | I203: 0.68 | K203: 32
A205: =IF(LEFT($C205,SEARCH(" ",$C205&" "))=LEFT($C203,SEARCH(" ",$C203&" ")),N(A203),N(A203)+1) -> 33 | B205: C1326/1 | C205: CARREAU 13X26 RUSTIQUE REF. AC1310 0.676M2/C | D205: 22.984 | E205: 4000 | F205: 21.632 | I205: 1.352 | K205: =IF(LEFT($C205,SEARCH(" ",$C205&" "))=LEFT($C203,SEARCH(" ",$C203&" ")),N(K203),N(K203)+1) -> 33
A206: 33 | B206: C1326/2 | C206: CARREAU 13X26 RUSTIQUE REF. AC1319 0.676M2/C | D206: 0 | E206: 4000 | F206: 20.28 | H206: 20.28 | K206: 33
A207: 33 | B207: C1326/4 | C207: CARREAU 13X26 RUSTIQUE REF. AF1340 0,676M2/C | D207: 57.36 | E207: 4000 | F207: 58.136 | H207: 0.776 | K207: 33
A208: 33 | B208: C1428/2 | C208: CARREAU 14X28 RUSTIQUE BEIGE REF. H1401 0.588M2/C | D208: 19.417 | E208: 4350 | F208: 37.04 | H208: 17.623 | K208: 33
A209: 33 | B209: C1428/3 | C209: CARREAU 14X28 RUSTIQUE BEIGE REF. N* 2812 0.988M2/C | D209: 158.949 | E209: 4350 | F209: 157.092 | I209: 1.857 | K209: 33
A210: 33 | B210: C1428/5 | C210: CARREAU 14X28 RUSTIQUE BEIGE REF. N* G1401 0.588M2/C | D210: 18.652 | E210: 4350 | F210: 4.764 | I210: 13.888 | K210: 33
A211: 33 | B211: C1428/6 | C211: CARREAU 14X28 RUSTIQUE ROUGE REF. N* G1407 0.588M2/C | D211: 45.864 | E211: 4350 | F211: 19.4 | G211: 19.4 | I211: 26.464 | K211: 33
A212: 33 | B212: C1428/4 | C212: CARREAU 14X28 RUSTIQUE ROUGE REF. N*2816 0.988M2/C | D212: 24.761 | E212: 4350 | F212: 72.124 | H212: 47.363 | K212: 33
A213: 33 | B213: C1428/7 | C213: CARREAU 14X28 RUSTIQUE VERT REF. N*H1405 0.627M²/C | D213: 23.12 | E213: 4350 | F213: 53.922 | H213: 30.802 | K213: 33
A214: 33 | B214: C1428/8 | C214: CARREAU 14X28 RUSTIQUE VERT REF.N*G1405 0.588M²/C | D214: 62.916 | E214: 4350 | F214: 33.516 | I214: 29.4 | K214: 33
A215: 33 | B215: C167 | C215: CARREAU 15X15 BLANC LEGER 1C =1M2 | D215: 126 | E215: 2350 | F215: 0 | I215: 126 | K215: 33
A216: 33 | B216: C2025/3 | C216: CARREAU 20X25 ITALIA ARMONI BLEU 1.5M²/C | D216: 301.45 | E216: 4275 | F216: 312 | H216: 10.55 | K216: 33
A217: 33 | B217: C2025/2 | C217: CARREAU 20X25 ITALIA BETON GRIS FONCE 1.85M²/C | D217: 386.6 | E217: 3600 | F217: 390.35 | H217: 3.75 | K217: 33
A218: 33 | B218: C2030/70 | C218: CARREAU 20X30 JADE D. VERT 1.5M2/C | D218: 108 | E218: 2900 | F218: 56.4 | G218: 2.4 | I218: 51.6 | K218: 33
A219: 33 | B219: C2030/101 | C219: CARREAU 20X30 M32A20302 1.5M2/C | D219: 52.02 | E219: 2900 | F219: 60 | H219: 7.98 | K219: 33
A220: 33 | B220: C2030/100 | C220: CARREAU 20X30 M32A20306 1.5M2/C | D220: 63 | E220: 2900 | F220: 51 | I220: 12 | K220: 33
A221: 33 | B221: C2030/60 | C221: CARREAU 20X30 MASSA D. GRIS 1.5M2/C | D221: 41.88 | E221: 2900 | F221: 37.5 | G221: 37.5 | I221: 4.38 | K221: 33
A222: 33 | B222: C2030/61 | C222: CARREAU 20X30 MASSA D. ROSE 1.5M2/C | D222: 186 | E222: 2900 | F222: 183 | I222: 3 | K222: 33
A223: 33 | B223: C2030/57 | C223: CARREAU 20X30 MASSA L GRIS 1.5M2/C | D223: 18.34 | E223: 3000 | F223: 0 | I223: 18.34 | K223: 33
A224: 33 | B224: C2030/59 | C224: CARREAU 20X30 MASSA L. BEIGE 1.5M2/C | D224: 13.5 | E224: 2900 | F224: 0 | I224: 13.5 | K224: 33
A225: 33 | B225: C2030/73 | C225: CARREAU 20X30 MASSA WIN BEIGE DECOR/PLAQUE | D225: 70 | E225: 1250 | F225: 0 | I225: 70 | K225: 33
A226: 33 | B226: C2030/86 | C226: CARREAU 20X30 REF 2313L BLANC 1.5M²/C | D226: 33 | E226: 2900 | F226: 0 | I226: 33 | K226: 33
A227: 33 | B227: C2030/91 | C227: CARREAU 20X30 REF 2609 BLANC 1.5M²/C | D227: 135 | E227: 2900 | F227: 175.5 | H227: 40.5 | K227: 33
A228: 33 | B228: C2030/89 | C228: CARREAU 20X30 REF 306 BLANC 1.5M²/C | D228: 124.5 | E228: 2900 | F228: 126 | G228: 1.5 | H228: 1.5 | K228: 33
A229: =IF(LEFT($C229,SEARCH(" ",$C229&" "))=LEFT($C228,SEARCH(" ",$C228&" ")),N(A228),N(A228)+1) -> 33 | B229: C2030/105 | C229: CARREAU 20X30 REF M32A100524 1.5M²/C | D229: 70.5 | E229: 2900 | F229: 61.5 | I229: 9 | K229: =IF(LEFT($C229,SEARCH(" ",$C229&" "))=LEFT($C228,SEARCH(" ",$C228&" ")),N(K228),N(K228)+1) -> 33
A230: 33 | B230: C2030/90 | C230: CARREAU 20X30 REF S23005 BLANC 1.5M²/C | D230: 175.5 | E230: 2900 | F230: 154.5 | I230: 21 | K230: 33
A231: 33 | B231: C2030/34 | C231: CARREAU 20X30 REF.7147B | D231: 15 | E231: 2900 | F231: 0 | I231: 15 | K231: 33
A232: 33 | B232: C2030/33 | C232: CARREAU 20X30 REF.7147D 1.5M2/C | D232: 12 | E232: 2900 | F232: 0 | I232: 12 | K232: 33
A233: 33 | B233: C2030/38 | C233: CARREAU 20X30 REF.8003A 1.5M2/C | D233: 15 | E233: 3280 | F233: 6 | G233: 6 | I233: 9 | K233: 33
... 950 more rows
